Workbook

Sheet Read Me

Sheet Control
G3: Time Series of Global Supply and Demand | N3: Time Series of Price, Marginal Cost, and | V3: Supply and Demand Schedules
G4: for Good #2 | N4: Marginal Values for Good #2 in Economy 1 | V4: for Good #2 in Economy 1
A26: SIMLEN: | B26: 30
A27: DT: | B27: 0.01 | BC27: *
A28: PER: | B28: =B26/30 -> 1
A29: TIME: | B29: 30.00059128
G47: Time Series of Interest Rates | N47: Time Series of Household Utility | V47: Time Series of International
G48: and Currency Values | N48: and Leisure | V48: Trade and Financial Balances

Sheet Econ 0
G5: < Absolute Commodity Values > | V5: < Export / Import Resolution >
U7: S
G8: 2 | H8: ='Econ 2'!AH14 -> -1658478.578 | I8: ='Econ 2'!AI14 -> 1274.924627 | J8: ='Econ 2'!AJ14 -> 10531.43283 | K8: ='Econ 2'!AK14 -> 55308.77673 | L8: 2 | M8: __ | T8: 2 | U8: ='Econ 2'!U45+'Econ 2'!U14 -> -103279.8824 | V8: ='Econ 2'!V45+'Econ 2'!V14 -> 100.2260509 | W8: ='Econ 2'!W45+'Econ 2'!W14 -> 741.3904975 | X8: ='Econ 2'!X45+'Econ 2'!Z22+'Econ 2'!X14 -> 2067.774127 | Y8: 2
G9: 1 | H9: ='Econ 1'!AH14 -> -1658478.578 | I9: ='Econ 1'!AI14 -> 1274.924627 | J9: ='Econ 1'!AJ14 -> 10531.43283 | K9: ='Econ 1'!AK14 -> 55308.77673 | L9: 1 | M9: U | T9: 1 | U9: ='Econ 1'!U45+'Econ 1'!U14 -> -105897.7699 | V9: ='Econ 1'!V45+'Econ 1'!V14 -> 100.329141 | W9: ='Econ 1'!W45+'Econ 1'!W14 -> 825.5883494 | X9: ='Econ 1'!X45+'Econ 1'!Z22+'Econ 1'!X14 -> 1876.810634 | Y9: 1 | Z9: Global
G10: 0 | H10: =H9+H8 -> -3316957.156 | I10: =I9+I8 -> 2549.849253 | J10: =J9+J8 -> 21062.86567 | K10: =K9+K8 -> 110617.5535 | L10: 0 | T10: 0 | U10: =-2*GPE!E10 -> -209177.6522 | V10: =V9+V8 -> 200.5551919 | W10: =W9+W8 -> 1566.978847 | X10: =X9+X8 -> 3944.584761 | Y10: 0 | Z10: Supply
H11: 0 | I11: 1 | J11: 2 | K11: L | U11: 0 | V11: 1 | W11: 2 | X11: L
U12: D
G13: 2 | H13: ='Econ 2'!U41 -> -1761171.12 | I13: ='Econ 2'!V41 -> 598361.5224 | J13: ='Econ 2'!W41 -> 598361.5224 | K13: ='Econ 2'!X41 -> 564448.0755 | L13: 2 | M13: __ | T13: 2 | U13: ='Econ 2'!U70 -> -102612.4502 | V13: ='Econ 2'!V70 -> 98.66745466 | W13: ='Econ 2'!W70 -> 770.2414638 | X13: ='Econ 2'!X70 -> 1911.425559 | Y13: 2
G14: 1 | H14: ='Econ 1'!U41 -> -1765017.223 | I14: ='Econ 1'!V41 -> 599723.6204 | J14: ='Econ 1'!W41 -> 599723.6204 | K14: ='Econ 1'!X41 -> 565569.9827 | L14: 1 | M14: Q | T14: 1 | U14: ='Econ 1'!U70 -> -106819.1592 | V14: ='Econ 1'!V70 -> 102.0735374 | W14: ='Econ 1'!W70 -> 798.2661146 | X14: ='Econ 1'!X70 -> 2037.067545 | Y14: 1 | Z14: Global
G15: 0 | H15: =H14+H13 -> -3526188.344 | I15: =I14+I13 -> 1198085.143 | J15: =J14+J13 -> 1198085.143 | K15: =K14+K13 -> 1130018.058 | L15: 0 | T15: 0 | U15: =U14+U13 -> -209431.6095 | V15: =V14+V13 -> 200.7409921 | W15: =W14+W13 -> 1568.507578 | X15: =X14+X13 -> 3948.493104 | Y15: 0 | Z15: Demand
H16: 0 | I16: 1 | J16: 2 | K16: L | U16: 0 | V16: 1 | W16: 2 | X16: L
D18: i | F18: n | H18: =1 -> 1 | I18: =GPE!F18/GPE!$E18 -> 441.9334589 | J18: =GPE!G18/GPE!$E18 -> 53.8606403 | K18: =GPE!H18/GPE!$E18 -> 10
D19: =-D27 -> -0.1022387762 | F19: =(1-1/H41)/Term -> -0.13557594 | G19: Y | H19: =H15/(H10+U10) -> 1.000015183 | I19: =I15/(I10+V10) -> 435.60326 | J19: =J15/(J10+W10) -> 52.94270325 | K19: =K15/(K10+X10) -> 9.863800342 | M19: Y | T19: S | U19: 1 | V19: =IF(V21>1,1/V21,1) -> 1 | W19: =IF(W21>1,1/W21,1) -> 1 | X19: =IF(X21>1,1/X21,1) -> 1 | Y19: S | Z19: Global
D20: -0.1 | F20: -0.1355310143 | H20: 0 | I20: 1 | J20: 2 | K20: L | T20: D | U20: =U21 -> 0.9987873977 | V20: =IF(V21<1,V21,1) -> 0.9990744282 | W20: =IF(W21<1,W21,1) -> 0.9990253592 | X20: =IF(X21<1,X21,1) -> 0.9990101685 | Y20: D | Z20: Factors
U21: =IF(U15<>0,U10/U15,1) -> 0.9987873977 | V21: =IF(V15<>0,V10/V15,1) -> 0.9990744282 | W21: 0.9990253592 | X21: 0.9990101685 | Y21: S / D
G22: < Global Financial Parameters > | U22: 0 | V22: 1 | W22: 2 | X22: L
F25: Global | G25: 2 | H25: =-I25-J25 -> -82910.01161 | I25: =I$19*V8 -> 43658.79451 | J25: =J$19*W8 -> 39251.2171 | L25: 2 | T25: 2 | U25: =U$19*U8 -> -103279.8824 | V25: 100.2260509 | W25: 741.3904975 | X25: 2067.774127 | Y25: 2 | Z25: Global
D26: - i | F26: Interest | G26: 1 | H26: =-I26-J26 -> -87412.57989 | I26: =I$19*V9 -> 43703.7009 | J26: =J$19*W9 -> 43708.87899 | L26: 1 | M26: YS | T26: 1 | U26: -105897.7699 | V26: 100.329141 | W26: 825.5883494 | X26: 1876.810634 | Y26: 1 | Z26: Supply
D27: =-H27/H32-V0 -> 0.1022387762 | F27: < Rate | G27: 0 | H27: =H26+H25 -> -170322.5915 | I27: =I26+I25 -> 87362.49541 | J27: =J26+J25 -> 82960.09609 | L27: 0 | T27: 0 | U27: =U26+U25 -> -209177.6522 | V27: =V26+V25 -> 200.5551919 | W27: =W26+W25 -> 1566.978847 | X27: =X26+X25 -> 3944.584761 | Y27: 0 | Z27: Absorbed
D28: 0.1 | H28: 0 | I28: 1 | J28: 2 | K28: L | U28: 0 | V28: 1 | W28: 2 | X28: L
D30: Global | G30: 2 | H30: =-I30-J30 -> 75403.8997 | I30: ='Econ 2'!I20 -> -39690.22158 | J30: ='Econ 2'!I21 -> -35713.67812 | L30: 2 | T30: 2 | U30: =U$20*U13 -> -102488.0221 | V30: 98.57613084 | W30: 769.490755 | X30: 1909.533569 | Y30: 2 | Z30: Global
D31: Investment | F31: T | G31: 1 | H31: =-I31-J31 -> 79120.32424 | I31: ='Econ 1'!I20 -> -39726.192 | J31: ='Econ 1'!I21 -> -39394.13224 | L31: 1 | M31: a | T31: 1 | U31: -106689.6301 | V31: 101.9790611 | W31: 797.4880918 | X31: 2035.051192 | Y31: 1 | Z31: Demand
D32: Term > | F32: 6.468293502 | G32: 0 | H32: =H31+H30 -> 154524.2239 | I32: =I31+I30 -> -79416.41358 | J32: =J31+J30 -> -75107.81036 | L32: 0 | T32: 0 | U32: =U31+U30 -> -209177.6522 | V32: =V31+V30 -> 200.5551919 | W32: =W31+W30 -> 1566.978847 | X32: =X31+X30 -> 3944.584761 | Y32: 0 | Z32: Met
F33: 7 | H33: 0 | I33: 1 | J33: 2 | K33: L | U33: 0 | V33: 1 | W33: 2 | X33: L
S35: - F | U35: X
C36: Investment | R36: 2 | S36: ='Econ 2'!S53-'Econ 2'!S33 -> -626.6613662 | T36: 2 | U36: =-I$19*V36-J$19*W36-K$19*X36 -> -791.8602246 | V36: =V25-V30 -> 1.64992005 | W36: -28.10025757 | X36: 158.240558 | Y36: 2 | Z36: Physical
C37: Term | F37: =Term-(1/H41-1/NPV)/H37 -> 6.4682796 | H37: =LN(1-Iota)*(1-Iota)^Term+Iota*D43/F43 -> 0.3182833909 | R37: 1 | S37: ='Econ 1'!S53-'Econ 1'!S33 -> 558.8979358 | T37: 1 | U37: =-I$19*V37-J$19*W37-K$19*X37 -> 791.8602246 | V37: -1.64992005 | W37: 28.10025757 | X37: -158.240558 | Y37: 1 | Z37: Export / Import
C38: Calculation | F38: =ITerm -> 7 | R38: 0 | S38: =S37+S36 -> -67.76343044 | T38: 0 | U38: =U37+U36 -> 1.182343112e-11 | V38: =V37+V36 -> 0 | W38: =W37+W36 -> -2.273736754e-13 | X38: =X37+X36 -> 0 | Y38: 0 | Z38: Profile
V39: 1 | W39: 2 | X39: L
D40: K | F40: G | H40: NPV | I40: 1
C41: 2 | D41: =-SUM('Econ 2'!E19:E22)/P0_2 -> -75303.93111 | E41: 2 | F41: =-SUM('Econ 2'!G19:G22)/P0_2 -> 62699.35006 | H41: =(1-Iota/V0)^(-Term) -> 0.5327806703 | I41: (1 - i)T
C42: 1 | D42: =-SUM('Econ 1'!E19:E22)/P0_1 -> -79011.418 | E42: 1 | F42: =-SUM('Econ 1'!G19:G22)/P0_1 -> 53671.53446 | Q42: r- | S42: r+
C43: 0 | D43: =D42+D41 -> -154315.3491 | E43: 0 | F43: =F42+F41 -> 116370.8845 | H43: =1/(1+Iota*Term*D43/F43) -> 0.5327819263 | I43: 1 | P43: 2 | Q43: =('Econ 2'!Q81-'Econ 2'!Q17)/P0_2 -> 0 | R43: 2 | S43: =('Econ 2'!S81-'Econ 2'!S17)/P0_2 -> 7.605417148 | T43: 2 | U43: International
D44: G | F44: G | H44: =IState!C9 -> 0.5131581182 | I44: 1+iTK/G | P44: 1 | Q44: =('Econ 1'!Q81-'Econ 1'!Q17)/P0_1 -> -0.7349734545 | R44: 1 | S44: =('Econ 1'!S81-'Econ 1'!S17)/P0_1 -> 0 | T44: 1 | U44: < Settlements
P45: 0 | Q45: =Q44+Q43 -> -0.7349734545 | R45: 0 | S45: =S44+S43 -> 7.605417148 | T45: 0
Q46: G/year | S46: G/year
M49: k | O49: g | Q49: rk | S49: rg
L50: 2 | M50: =M57 -> 0 | N50: 2 | O50: =O57+O62+O67 -> -7326.201958 | P50: 2 | Q50: =IF(AND(S43>0,M50>0),-S43,0)+IF(AND(Q43<0,O50>=0),-Q43,0) -> 0 | R50: 2 | S50: =IF(AND(Q43<0,O50<0),-Q43,0)+IF(AND(S43>0,M50<=0),-S43,0) -> -7.605417148 | T50: 2
L51: 1 | M51: =M58 -> 7548.513717 | N51: 1 | O51: =O58+O63+O68 -> 0 | P51: 1 | Q51: =IF(AND(S44>0,M51>0),-S44,0)+IF(AND(Q44<0,O51>=0),-Q44,0) -> 0.7349734545 | R51: 1 | S51: =IF(AND(Q44<0,O51<0),-Q44,0)+IF(AND(S44>0,M51<=0),-S44,0) -> 0 | T51: 1
L52: 0 | M52: =-M50-M51 -> -7548.513717 | N52: 0 | O52: =-O50-O51 -> 7326.201958 | P52: 0 | Q52: =-Q50-Q51 -> -0.7349734545 | R52: 0 | S52: =-S50-S51 -> 7.605417148 | T52: 0
M53: G | O53: G | Q53: G/year | S53: G/year
M56: k | O56: A | Q56: k | S56: A
L57: 2 | M57: 0 | N57: 2 | O57: -2447.840798 | P57: 2 | Q57: =M57+DT*Q50 -> 0 | R57: 2 | S57: =O57+DT*(S50-3*O57/Term+3*O67/Term) -> -2447.861505 | T57: 2
L58: 1 | M58: 7548.513717 | N58: 1 | O58: 0 | P58: 1 | Q58: =M58+DT*Q51 -> 7548.521067 | R58: 1 | S58: =O58+DT*(S51-3*O58/Term+3*O68/Term) -> 0 | T58: 1
L59: 0 | M59: -7548.513717 | N59: 0 | O59: 2447.840798 | P59: 0 | Q59: =-Q57-Q58 -> -7548.521067 | R59: 0 | S59: =-S57-S58 -> 2447.861505 | T59: 0
O61: B | S61: B
N62: 2 | O62: -2442.453821 | P62: 2 | R62: 2 | S62: =O62+DT*3*(O57-O62)/Term -> -2442.478806 | T62: 2
M63: @ time = t > | N63: 1 | O63: 0 | P63: 1 | R63: 1 | S63: =O63+DT*3*(O58-O63)/Term -> 0 | T63: 1 | U63: < @ time = t + d
N64: 0 | O64: 2442.453821 | P64: 0 | R64: 0 | S64: =-S62-S63 -> 2442.478806 | T64: 0
O66: C | S66: C
N67: 2 | O67: -2435.907338 | P67: 2 | R67: 2 | S67: =O67+DT*3*(O62-O67)/Term -> -2435.937701 | T67: 2
N68: 1 | O68: 0 | P68: 1 | R68: 1 | S68: =O68+DT*3*(O63-O68)/Term -> 0 | T68: 1
N69: 0 | O69: 2435.907338 | P69: 0 | R69: 0 | S69: =-S67-S68 -> 2435.937701 | T69: 0

Sheet Econ 1
AI4: =-SUM(AI6:AI9) -> -2069.208993 | AJ4: =-SUM(AJ6:AJ9) -> -16331.43283 | AK4: =-SUM(AK6:AK9) -> -53720.70266
F5: < Temporal Parameters, i.e.: Turnover Fractions > | T5: H | U5: 0 | V5: 1 | W5: 2 | X5: L | AG5: U | AH5: 0 | AI5: 1 | AJ5: 2 | AK5: L | AL5: t | AM5: Z | AO5: Z
T6: 0 | V6: 1 | W6: 1 | X6: 0 | Y6: 0 | AG6: 0 | AI6: 794.2843664 | AJ6: 5800 | AK6: 8766 | AL6: 0 | AM6: =Z19+AM19 -> -637368.7973 | AO6: =Utility!E28 -> -643139.1648 | AP6: 0
S7: =1-U7 -> 4 | T7: 1 | U7: =-SUM(V7:X7) -> -3 | V7: =SIGN(AI7) -> 1 | W7: 1 | X7: 1 | Y7: 1 | Z7: =1/(1-U7) -> 0.25 | AF7: Spatial Parameters, | AG7: 1 | AI7: 644.2843664 | AJ7: 5546.692237 | AK7: 29682.74915 | AL7: 1 | AM7: =AI6 -> 794.2843664 | AO7: =Utility!M14 -> 794.2843664 | AP7: 1
E8: i | G8: n | I8: V0 | S8: =1-U8 -> 4 | T8: 2 | U8: =-SUM(V8:X8) -> -3 | V8: 1 | W8: 1 | X8: 1 | Y8: 2 | Z8: =1/(1-U8) -> 0.25 | AF8: i.e.: production and | AG8: 2 | AI8: 572.4895161 | AJ8: 4693.503722 | AK8: 25626.02758 | AL8: 2 | AM8: =AJ6 -> 5800 | AO8: =Utility!M30 -> 5693.503722 | AP8: 2
E9: =-E60 -> -0.1048056328 | G9: =(1-1/NPV_1)/Term1 -> -0.1690275302 | I9: =V0 -> 1 | J9: =IState!H13 -> 0.1 | K9: =IState!I13 -> 0.3333333333 | L9: =IState!J13 -> 1 | N9: < V | S9: =X9-U9 -> 1 | T9: L | U9: =-SUM(V9:W9) -> -2 | V9: 1 | W9: 1 | X9: =SIGN(AK9) -> -1 | Y9: L | Z9: =1/(1-U9) -> 0.3333333333 | AF9: utility tradeoffs > | AG9: L | AI9: 58.15074408 | AJ9: 291.2368745 | AK9: =Zl_1 -> -10354.07407 | AL9: L | AM9: =L9*L49 -> -10354.07407 | AN9: ZL | AO9: =Utility!M45 -> -10219.74286 | AP9: L
E10: =IState!C$13 -> -0.1 | G10: =IState!E13 -> -0.1355310143 | I10: 0 | J10: 1 | K10: 2 | L10: L | S10: h | U10: -N | Z10: 1/(N + 1)
C13: Contra- | E13: -k | G13: -g | AG13: __
C14: Accounts > | E14: =E17+SUM(E19:E22) -> 185940.031 | G14: =G17+SUM(G19:G22) -> -115292.2402 | I14: =-I17-SUM(I19:I22) -> -4.877165338e-11 | J14: =-J17-SUM(J19:J22) -> -5.86197757e-13 | K14: =-K17-SUM(K19:K22) -> 9.094947018e-13 | L14: =-L17-SUM(L19:L22) -> -2.273736754e-12 | N14: < Markets | Q14: =E9*Kappa1 -> -19487.5626 | S14: =G9*Gamma1 -> 19487.5626 | U14: =I$9*I14 -> -4.877165338e-11 | V14: =J9*J14 -> -5.86197757e-14 | W14: =K9*K14 -> 3.031649006e-13 | X14: =L9*L14 -> -2.273736754e-12 | Z14: < Market Pressure | AF14: =SUM(AF55:AF58) -> 4931786.217 | AG14: U | AH14: =SUM(U56:U58) -> -1658478.578 | AI14: =SUM(AI7:AI9) -> 1274.924627 | AJ14: =SUM(AJ7:AJ9) -> 10531.43283 | AK14: =SUM(AK7:AK8) -> 55308.77673
I15: 0 | J15: 1 | K15: 2 | L15: L | U15: 0 | V15: 1 | W15: 2 | X15: L | AH15: 0 | AI15: 1 | AJ15: 2 | AK15: L
R16: Balance of Payments
E17: =E25 -> 16214.9901 | G17: =G25+G33+G41 -> 0 | I17: =I25+I33+I41 -> 791.8442725 | J17: =J25+J33+J41 -> -16.36887228 | K17: =K25+K33+K41 -> 84.33452814 | L17: =L25+L33+L41 -> -158.2996847 | Q17: =Iota1*E17 -> -1699.422298 | S17: =Nu_1*G17 -> 0 | U17: =I$9*I17 -> 791.8442725 | V17: =J$9*J17 -> -1.636887228 | W17: =K$9*K17 -> 28.11150938 | X17: =L$9*L17 -> -158.2996847 | AF17: =AF53+Q17+S17 -> -4933485.639 | AH17: =U17+U53 -> 2296666.515 | AI17: =AI4+V17 -> -2070.84588 | AJ17: =AJ4+W17 -> -16303.32132 | AK17: =AK4+X17 -> -53879.00234
I18: 0 | J18: 1 | K18: 2 | L18: L | R18: e | T18: E | U18: 0 | V18: 1 | W18: 2 | X18: L | Z18: Y | AF18: u + e | AG18: m | AH18: 0 | AI18: 1 | AJ18: 2 | AK18: L | AM18: l | AO18: (u + e)/h
D19: 0 | E19: =E27 -> 0 | F19: 0 | G19: =G27+G35+G43 -> 0 | H19: 0 | I19: =I27+I35+I43 -> 105899.6079 | J19: -1003.149283 | K19: -2476.688536 | L19: -8766 | M19: 0 | P19: 0 | Q19: =Iota1*E19 -> 0 | R19: 0 | S19: =Nu_1*G19 -> 0 | T19: 0 | U19: =I$9*I19 -> 105899.6079 | V19: -100.3149283 | W19: -825.5628452 | X19: -8766 | Y19: 0 | Z19: =U45 -> -105897.7699 | AB19: =-GPE!E10 -> -104588.8261 | AF19: =AF55+Q19+S19 -> 0 | AG19: 0 | AH19: =AM19 -> -531471.0274 | AI19: =AM20 -> 693.9552254 | AJ19: =AM21 -> 4974.411651 | AK19: =AK6+X19 -> 0 | AL19: 0 | AM19: =-V49*AM20-W49*AM21-X49*AM22 -> -531471.0274 | AN19: 0 | AP19: 0
C20: Monetary > | D20: 1 | E20: =E28 -> 81438.28342 | F20: 1 | H20: 1 | I20: -39726.192 | J20: 496.047059 | K20: 488.6890228 | L20: 962.6643562 | M20: 1 | N20: < Physical | P20: 1 | Q20: =Iota1*E20 -> -8535.190826 | R20: 1 | S20: =Nu_1*G20 -> 0 | T20: 1 | U20: -39726.192 | V20: 49.6047059 | W20: 162.8963409 | X20: 962.6643562 | Y20: 1 | Z20: =AM7-AM20 -> 100.329141 | AA20: < Production | AF20: 2597306.037 | AG20: 1 | AH20: =U20+U56 -> -906820.1548 | AI20: =AI7+V20 -> 693.8890723 | AJ20: 5709.588578 | AK20: =AK7+X20 -> 30645.41351 | AL20: 1 | AM20: =AM7*Z28 -> 693.9552254 | AN20: 1 | AO20: =AF20/S7 -> 649326.5091 | AP20: 1
C21: Stocks | D21: 2 | E21: =E29 -> 88286.75743 | F21: 2 | H21: 2 | I21: -39394.13224 | J21: 320.5614178 | K21: 841.8527326 | L21: 1072.467828 | M21: 2 | N21: Stocks | P21: 2 | Q21: =Iota1*E21 -> -9252.949478 | R21: 2 | S21: =Nu_1*G21 -> 0 | T21: 2 | U21: -39394.13224 | V21: 32.05614178 | W21: 280.6175775 | X21: 1072.467828 | Y21: 2 | Z21: =AM8-AM21 -> 825.5883494 | AD21: U + E | AE21: > | AF21: 2262806.594 | AG21: 2 | AH21: =U21+U57 -> -790029.2262 | AI21: 604.5456579 | AJ21: 4974.1213 | AK21: =AK8+X21 -> 26698.49541 | AL21: 2 | AM21: =AM8*Z29 -> 4974.411651 | AN21: 2 | AO21: =AF21/S8 -> 565701.6486 | AP21: 2
D22: L | F22: L | G22: =G30+G38+G46 -> -115292.2402 | H22: L | I22: -27571.1279 | J22: 202.9096786 | K22: 1061.812252 | L22: 6889.167501 | M22: L | P22: L | Q22: =Iota1*E22 -> 0 | R22: L | S22: =Nu_1*G22 -> 19487.5626 | T22: L | U22: -27571.1279 | V22: 20.29096786 | W22: 353.9374173 | X22: 6889.167501 | Y22: L | Z22: =AM9-AM22 -> -6889.189366 | AA22: < | AB22: YL = - Leisure | AF22: =AF58+Q22+S22 -> 73373.00819 | AG22: L | AH22: =U22+U58 -> -68320.64901 | AI22: 78.44171194 | AJ22: 645.1742918 | AK22: =AM22 -> -3464.884709 | AL22: L | AM22: =AM9*Z30 -> -3464.884709 | AN22: L | AO22: =AF22/S9 -> 73373.00819 | AP22: L
E23: Investment | G23: Saving | Q23: - Dividends | S23: + Dividends | Z23: =Utility!M41 -> -6766
Q24: Created | S24: Absorbed
E25: 16214.9901 | G25: 0 | I25: 263.9507711 | J25: -5.480202244 | K25: 28.10589651 | L25: -52.75657361 | V25: - Y/l
H26: A | I26: 0 | J26: 1 | K26: 2 | L26: L | S26: w | T26: W | U26: 0 | V26: 1 | W26: 2 | X26: L | Z26: l/Z | AF26: b = e/w | AH26: Q = E0/W0 | AM26: z = pl | AO26: q = P0Q
D27: 0 | E27: 0 | F27: 0 | G27: 0 | H27: 0 | I27: 35299.55859 | J27: -334.4121349 | K27: -825.576215 | L27: -2922 | M27: 0 | T27: 0 | U27: =-Z19/AM19 -> -0.1992540786 | V27: =-Z20/AI19 -> -0.1445758132 | W27: =-Z21/AJ19 -> -0.1659670344 | Y27: 0 | Z27: =AM19/AM6 -> 0.8338516565 | AE27: 0 | AG27: 0 | AL27: 0 | AN27: 0 | AP27: 0
D28: 1 | E28: 81438.28342 | F28: 1 | G28: -1.411692594e-08 | H28: 1 | I28: -13241.91008 | J28: 165.3893014 | K28: 162.8931293 | L28: 320.8797265 | M28: 1 | Q28: E | R28: > | S28: =V27-U28 -> -0.01314455424 | T28: 1 | U28: =-SUM(V28:X28) -> -0.1314312589 | V28: =V20/AI20 -> 0.07148794797 | W28: 0.02853031154 | X28: 0.0314129994 | Y28: 1 | Z28: =(1-V28)*(1-W28)*(1-X28) -> 0.8736861189 | AE28: 1 | AF28: =Q20/S28 -> 649332.8471 | AG28: 1 | AH28: =U20/U28 -> 302258.3237 | AL28: 1 | AM28: =AM44*AM20 -> 649349.6899 | AN28: 1 | AO28: =P0_1*AH28 -> 649283.4534 | AP28: 1
D29: 2 | E29: 88286.75743 | F29: 2 | G29: 1.411692594e-08 | H29: 2 | I29: -13131.26725 | J29: 106.870005 | K29: 280.6261701 | L29: 357.4839881 | M29: 2 | Q29: U + E | S29: =W27-U29 -> -0.01635674977 | T29: 2 | U29: =-SUM(V29:X29) -> -0.1496102846 | V29: 0.05302517909 | W29: 0.05641550751 | X29: 0.040169598 | Y29: 2 | Z29: =(1-V29)*(1-W29)*(1-X29) -> 0.8576571811 | AE29: 2 | AF29: =Q21/S29 -> 565696.0952 | AG29: 2 | AH29: =U21/U29 -> 263311.659 | AL29: 2 | AM29: =AM45*AM21 -> 565723.0841 | AN29: 2 | AO29: =P0_1*AH29 -> 565621.8204 | AP29: 2
D30: L | E30: 0 | F30: L | G30: -38447.29121 | H30: L | I30: -9190.332029 | J30: 67.63303081 | K30: 353.9510191 | L30: 2296.392859 | M30: L | S30: =X30-U30 -> 0.2656015678 | T30: L | U30: =-SUM(V30:W30) -> -0.8072676813 | V30: =V22/AI22 -> 0.2586757398 | W30: =W22/AJ22 -> 0.5485919415 | X30: =(AK6+Z22)/AK22 -> -0.5416661134 | Y30: L | Z30: =(1-V30)*(1-W30) -> 0.334639745 | AE30: L | AF30: =S22/S30 -> 73371.41404 | AG30: L | AH30: =U22/U30 -> 34153.63768 | AL30: L | AM30: =AM46*AM22 -> 73415.73095 | AN30: L | AO30: =P0_1*AH30 -> 73365.69445 | AP30: L
X31: (t+Y) /l
G33: 0 | I33: 263.9480953 | J33: -5.458014385 | K33: 28.11155822 | L33: -52.76649409 | S33: =S35-U33 -> -2296433.568 | U33: =-SUM(V33:X33) -> 2296433.568 | V33: =-SUM(V35:V38) -> -901981.9441 | W33: =-SUM(W35:W38) -> -863035.2794 | X33: =-SUM(X35:X38) -> -531416.345 | AF33: =AF35-AH33 -> -4933487.183 | AH33: =-SUM(AI33:AK33) -> 4933487.183 | AI33: =-SUM(AI35:AI38) -> -1937733.204 | AJ33: =-SUM(AJ35:AJ38) -> -1854096.452 | AK33: =-SUM(AK35:AK38) -> -1141657.528
H34: B | I34: 0 | J34: 1 | K34: 2 | L34: L | S34: hQ | T34: HQ | U34: 0 | V34: 1 | W34: 2 | X34: L | AF34: hb | AG34: Hb | AH34: 0 | AI34: 1 | AJ34: 2 | AK34: L | AO34: (PU + s)/N
F35: 0 | G35: 0 | H35: 0 | I35: 35299.86708 | J35: -334.3871584 | K35: -825.5631833 | L35: -2922 | M35: 0 | R35: 0 | S35: =U35-U35 -> 0 | T35: 0 | U35: =-U33-SUM(U36:U38) -> -531416.345 | V35: =V6*AH28 -> 302258.3237 | W35: =W6*AH29 -> 263311.659 | X35: =X6*AH30 -> 0 | Y35: 0 | AE35: 0 | AF35: =AH35-AH35 -> 0 | AG35: 0 | AH35: =-AH33-SUM(AH36:AH38) -> -1141657.528 | AI35: =V6*AF28 -> 649332.8471 | AJ35: =W6*AF29 -> 565696.0952 | AK35: =X6*AF30 -> 0 | AL35: 0 | AP35: 0
F36: 1 | G36: -1.272987699e-08 | H36: 1 | I36: -13242.06274 | J36: 165.3530717 | K36: 162.8961732 | L36: 320.8880572 | M36: 1 | R36: 1 | S36: =S7*$AH28 -> 1209033.295 | T36: 1 | U36: =U7*$AH28 -> -906774.9711 | V36: 302258.3237 | W36: 302258.3237 | X36: 302258.3237 | Y36: 1 | AE36: 1 | AF36: =S7*$AF28 -> 2597331.389 | AG36: 1 | AH36: =U7*$AF28 -> -1947998.541 | AI36: 649332.8471 | AJ36: 649332.8471 | AK36: 649332.8471 | AL36: 1 | AO36: =(AH56+AH84)/U7 -> 649322.5897 | AP36: 1
C37: System State | F37: 2 | G37: 1.272987699e-08 | H37: 2 | I37: -13131.37676 | J37: 106.8559384 | K37: 280.6177238 | L37: 357.4892455 | M37: 2 | R37: 2 | S37: =S8*$AH29 -> 1053246.636 | T37: 2 | U37: -789934.977 | V37: 263311.659 | W37: 263311.659 | X37: 263311.659 | Y37: 2 | AE37: 2 | AF37: =S8*$AF29 -> 2262784.381 | AG37: 2 | AH37: -1697088.286 | AI37: 565696.0952 | AJ37: 565696.0952 | AK37: 565696.0952 | AL37: 2 | AO37: =(AH57+AH85)/U8 -> 565695.9349 | AP37: 2
C38: @ time = t > | F38: L | G38: -38432.30737 | H38: L | I38: -9190.375676 | J38: 67.63616272 | K38: 353.937728 | L38: 2296.389191 | M38: L | R38: L | S38: =S9*$AH30 -> 34153.63768 | T38: L | U38: -68307.27536 | V38: 34153.63768 | W38: 34153.63768 | X38: -34153.63768 | Y38: L | AE38: L | AF38: =S9*$AF30 -> 73371.41404 | AG38: L | AH38: -146742.8281 | AI38: 73371.41404 | AJ38: 73371.41404 | AK38: -73371.41404 | AL38: L | AO38: =(AH58+AH86)/U9 -> 73387.30048 | AP38: L
T40: __ | AE40: Intersection of
G41: 0 | I41: 263.9454062 | J41: -5.430655647 | K41: 28.11707341 | L41: -52.77661701 | S41: =SUM(S36:S38) -> 2296433.568 | T41: Q | U41: =SUM(U36:U38) -> -1765017.223 | V41: =SUM(V36:V38) -> 599723.6204 | W41: =SUM(W36:W38) -> 599723.6204 | X41: =SUM(X36:X37) -> 565569.9827 | AE41: S/D Schedules > | AF41: =AF33/AF17 -> 1.000000313 | AH41: =AH33/AH17 -> 2.148107769 | AI41: =AI33/AI17 -> 935.720626 | AJ41: =AJ33/AJ17 -> 113.7250757 | AK41: =AK33/AK17 -> 21.18928485 | AP41: 1/(N+1)
H42: C | I42: 0 | J42: 1 | K42: 2 | L42: L | U42: 0 | V42: 1 | W42: 2 | X42: L | AG42: c Hb/m | AH42: 0 | AI42: 1 | AJ42: 2 | AK42: L | AM42: p | AO42: (pZPU)
F43: 0 | G43: 0 | H43: 0 | I43: 35300.18219 | J43: -334.3499898 | K43: -825.5491373 | L43: -2922 | M43: 0 | AE43: Marginal Costs of Production > | AF43: 1 | AG43: 0 | AH43: =AH35/AH19 -> 2.148108682 | AI43: 935.6984764 | AJ43: 113.7212066 | AL43: 0 | AN43: 0 | AP43: 0
F44: 1 | G44: -1.134285624e-08 | H44: 1 | I44: -13242.21918 | J44: 165.3046859 | K44: 162.8997203 | L44: 320.8965725 | M44: 1 | U44: =-GPE!E10 -> -104588.8261 | V44: =-GPE!F10 -> 100 | W44: =-GPE!G10 -> 750 | X44: =-GPE!H10 -> 8766 | AF44: =AF36/AF20 -> 1.000009761 | AG44: 1 | AH44: 2.148164144 | AI44: 935.7876828 | AJ44: 113.7267315 | AK44: =AK36/AK20 -> 21.18858168 | AL44: 1 | AM44: =AI49 -> 935.7227471 | AN44: 1 | AO44: =(AM44*AM7*AM56)^Z7 -> 649325.0725 | AP44: 1
F45: 2 | G45: 1.134285624e-08 | H45: 2 | I45: -13131.48823 | J45: 106.8354744 | K45: 280.6088387 | L45: 357.4945942 | M45: 2 | Q45: =-Q83 -> 0 | S45: =-S83 -> 0 | T45: Yt | U45: =-U83 -> -105897.7699 | V45: =Z20 -> 100.329141 | W45: =Z21 -> 825.5883494 | X45: =AK6 -> 8766 | Z45: < Output | AE45: Values of > | AF45: =AF37/AF21 -> 0.9999901833 | AG45: 2 | AH45: 2.148133549 | AI45: 935.7375871 | AJ45: 113.7278448 | AK45: =AK37/AK21 -> 21.18831367 | AL45: 2 | AM45: =AJ49 -> 113.7266322 | AN45: 2 | AO45: =(AM45*AM8*AM57)^Z8 -> 565700.3762 | AP45: 2
F46: L | G46: -38412.64159 | H46: L | I46: -9190.420192 | J46: 67.64048511 | K46: 353.9235049 | L46: 2296.38545 | M46: L | U46: 0 | V46: 1 | W46: 2 | X46: L | AE46: Marginal Product | AF46: =AF38/AF22 -> 0.9999782733 | AG46: L | AH46: 2.147854715 | AI46: 935.3622228 | AJ46: 113.7234 | AK46: =AK38/AK22 -> 21.17571585 | AL46: L | AM46: =-AK49 -> -21.18850615 | AN46: L | AO46: =(AM46*AM9*AM58)^Z9 -> 73396.3061 | AP46: L
S48: =GPE!C18/GPE!$E18 -> 0.05 | U48: =GPE!E18/GPE!$E18 -> 1 | V48: =GPE!F18/GPE!$E18 -> 441.9334589 | W48: =GPE!G18/GPE!$E18 -> 53.8606403 | X48: =GPE!H18/GPE!$E18 -> 10 | AF48: 1 | AH48: =GPE!E18 -> 2 | AI48: =GPE!F18 -> 883.8669178 | AJ48: =GPE!G18 -> 107.7212806 | AK48: =GPE!H18 -> 20
G49: =3*G41/Term1 -> 0 | L49: -10354.07407 | R49: Currency > | S49: =S33/AF33 -> 0.4654787746 | T49: Y | U49: ='Econ 0'!H19 -> 1.000015183 | V49: ='Econ 0'!I19 -> 435.60326 | W49: ='Econ 0'!J19 -> 52.94270325 | X49: ='Econ 0'!K19 -> 9.863800342 | Z49: < Values | AE49: Prices > | AF49: =P0_1*S49 -> 0.999898572 | AG49: P | AH49: =AH33/(U53+U17) -> 2.148107769 | AI49: =P0_1*V49 -> 935.7227471 | AJ49: =P0_1*W49 -> 113.7266322 | AK49: =P0_1*X49 -> 21.18850615
Q50: Value | S50: G/$ | U50: 0 | V50: 1 | W50: 2 | X50: L | Z50: G/unit | AD50: $/unit | AF50: $/$ | AH50: 0 | AI50: 1 | AJ50: 2 | AK50: L
F51: 0 | G51: =3*G43/Term1 -> 0 | H51: 0
F52: 1 | G52: =3*G44/Term1 -> -3.469970261e-09 | H52: 1
E53: Maturing | F53: 2 | G53: =3*G45/Term1 -> 3.469970261e-09 | H53: 2 | S53: =S55-U53 -> -2295874.671 | U53: =-SUM(V53:X53) -> 2295874.671 | V53: =V$49*AI4 -> -901354.1831 | W53: =W$49*AJ4 -> -864630.2022 | X53: =X$49*AK4 -> -529890.2852 | AF53: =AF55-AH53 -> -4931786.217 | AH53: =-SUM(AI53:AK53) -> 4931786.217 | AI53: =AI$49*AI4 -> -1936205.923 | AJ53: =AJ$49*AJ4 -> -1857318.855 | AK53: =AK$49*AK4 -> -1138261.438
E54: Principal > | F54: L | G54: =3*G46/Term1 -> -11751.07232 | H54: L | S54: ¡ | T54: YU | U54: 0 | V54: 1 | W54: 2 | X54: L | AF54: u | AG54: PU | AH54: 0 | AI54: 1 | AJ54: 2 | AK54: L | AM54: PU
R55: 0 | S55: =U55-U55 -> 0 | T55: 0 | U55: =-U53-SUM(U56:U58) -> -637396.0927 | V55: =V$49*AI6 -> 345992.8594 | W55: 307067.6789 | X55: 86466.0738 | Y55: 0 | AF55: =AH55-AH55 -> 0 | AG55: 0 | AH55: =-AH53-SUM(AH56:AH58) -> -1369195.499 | AI55: =AI$49*AI6 -> 743229.9494 | AJ55: 659614.4666 | AK55: 185738.4449 | AL55: 0 | AN55: 0
R56: 1 | S56: =V55-U56 -> 1213086.822 | T56: 1 | U56: =-SUM(V56:X56) -> -867093.9628 | V56: 280652.3704 | W56: 293656.8811 | X56: 292784.7112 | Y56: 1 | Z56: Interaction | AE56: Interaction | AF56: =AI55-AH56 -> 2605841.227 | AG56: 1 | AH56: =-SUM(AI56:AK56) -> -1862611.278 | AI56: 602871.5373 | AJ56: 630806.6278 | AK56: 628933.1128 | AL56: 1 | AM56: =AI56*AJ56*AK56 -> 2.391803455e+17 | AN56: 1
R57: 2 | S57: =W55-U57 -> 1057702.773 | T57: 2 | U57: =-SUM(V57:X57) -> -750635.094 | V57: 249378.2996 | W57: 248486.7748 | X57: 252770.0196 | Y57: 2 | Z57: < of Utility | AE57: of Utility > | AF57: =AJ55-AH57 -> 2272059.544 | AG57: 2 | AH57: =-SUM(AI57:AK57) -> -1612445.077 | AI57: 535691.4628 | AJ57: 533776.3714 | AK57: 542977.2429 | AL57: 2 | AM57: =AI57*AJ57*AK57 -> 1.552586116e+17 | AN57: 2
R58: L | S58: =X55+X58-U58 -> 25085.07551 | T58: L | U58: =-SUM(V58:W58) -> -40749.52111 | V58: 25330.65369 | W58: 15418.86742 | X58: -102130.5194 | Y58: L | Z58: with Values | AE58: with Prices | AF58: =AK55+AK58-AH58 -> 53885.44559 | AG58: L | AH58: =-SUM(AI58:AJ58) -> -87534.36289 | AI58: 54412.97399 | AJ58: 33121.3889 | AK58: -219387.3622 | AL58: L | AM58: =AI58*AJ58 -> 1802233273 | AN58: L
E59: - i | G59: Domestic
E60: =-I63/I60-V0_1 -> 0.1048056328 | F60: < | G60: Interest | I60: =-I20-I21 -> 79120.32424 | J60: < Asset Valuations, a | AH60: - PU
E61: -0.1 | G61: Rate | I61: 0
Q62: =IF(AF62/AF$49<AF53,AF62/AF$49-AF53,0) -> -2421.077112 | S62: =IF(AF62/AF$49>AF53,AF62/AF$49-AF53,0) -> 0 | U62: =AH62/AH$49-U53 -> 894.0939858 | V62: =AI62/AI$49-AI4 -> -1.744396442 | W62: =AJ62/AJ$49-AJ4 -> 27.32223485 | X62: =AK62/AK$49-AK4 -> -160.2569117 | AF62: =AF64-AH62 -> -4933706.827 | AH62: =-SUM(AI62:AK62) -> 4933706.827 | AI62: =-SUM(AI64:AI67) -> -1937838.195 | AJ62: =-SUM(AJ64:AJ67) -> -1854211.589 | AK62: =-SUM(AK64:AK67) -> -1141657.043
E63: Supply Valuations, YS | H63: > | I63: =-SUM(J63:K63) -> -87412.57989 | J63: =V49*V73 -> 43703.7009 | K63: =W49*W73 -> 43708.87899 | R63: -f | T63: Q | U63: 0 | V63: 1 | W63: 2 | X63: L | AF63: hz | AG63: Hz | AH63: 0 | AI63: 1 | AJ63: 2 | AK63: L
I64: 0 | J64: 1 | K64: 2 | P64: 0 | Q64: =IF(AF64/AF$49<AF55,AF64/AF$49-AF55,0) -> 0 | R64: 0 | S64: =IF(AF64/AF$49>AF55,AF64/AF$49-AF55,0) -> 0 | T64: 0 | U64: =AH64/AH$49-U55 -> 105925.0653 | V64: =AI64/AI$49-AI6 -> -100.329141 | W64: -825.5883494 | X64: -8766 | Y64: 0 | AE64: 0 | AF64: =AH64-AH64 -> 0 | AG64: 0 | AH64: =-AH62-SUM(AH65:AH67) -> -1141657.043 | AI64: =V6*$AM28 -> 649349.6899 | AJ64: =W6*$AM29 -> 565723.0841 | AK64: =X6*$AM30 -> 0 | AL64: 0
P65: 1 | Q65: =AF65/AF$49-AF56 -> -8178.991898 | R65: 1 | T65: 1 | U65: =AH65/AH$49-U56 -> -39773.51278 | V65: 49.67085899 | W65: 163.0494259 | X65: 963.5685001 | Y65: 1 | Z65: Optimal | AE65: 1 | AF65: =S7*$AM28 -> 2597398.76 | AG65: 1 | AH65: =U7*$AM28 -> -1948049.07 | AI65: 649349.6899 | AJ65: 649349.6899 | AK65: 649349.6899 | AL65: 1
I66: NPV | J66: 1 | P66: 2 | Q66: =AF66/AF$49-AF57 -> -8937.663511 | R66: 2 | T66: 2 | U66: =AH66/AH$49-U57 -> -39441.30563 | V66: 32.09457222 | W66: 280.9079284 | X66: 1073.499045 | Y66: 2 | Z66: < Rates of | AE66: 2 | AF66: =S8*$AM29 -> 2262892.336 | AG66: 2 | AH66: -1697169.252 | AI66: 565723.0841 | AJ66: 565723.0841 | AK66: 565723.0841 | AL66: 2
E67: Investment | G67: =LN(1+E60)*(1+E60)^Term1-E60*Kappa1/Gamma1 -> 0.4339072614 | I67: =1/(1-E60*Term1*Kappa1/Gamma1) -> 0.3762817074 | J67: 1+iTk/g | P67: L | Q67: 0 | R67: L | S67: =AF67/AF$49-AF58 -> 19537.73252 | T67: L | U67: =AH67/AH$49-U58 -> -27604.34083 | V67: 20.30810623 | W67: 354.3087602 | X67: 6889.189366 | Y67: L | Z67: Change | AE67: L | AF67: =S9*$AM30 -> 73415.73095 | AG67: L | AH67: -146831.4619 | AI67: 73415.73095 | AJ67: 73415.73095 | AK67: -73415.73095 | AL67: L
E68: Term | I68: 0.5131581182
E69: Calculation | G69: =Term1-(1/I69-1/NPV_1)/G67 -> 9.806589474 | I69: =1/(1+E60)^Term1 -> 0.3762817982 | J69: 1 | Z69: Domestic
I70: NPV | J70: (1 - i)T | Q70: =SUM(Q65:Q67) -> -17116.65541 | S70: =SUM(S65:S67) -> 19537.73252 | T70: D | U70: =SUM(U65:U67) -> -106819.1592 | V70: =SUM(V65:V67) -> 102.0735374 | W70: =SUM(W65:W67) -> 798.2661146 | X70: =SUM(X65:X66) -> 2037.067545 | Z70: < Demand
U71: 0 | V71: 1 | W71: 2 | X71: L
Z72: Domestic
Q73: =Q45+Q14 -> -19487.5626 | S73: =S45+S14 -> 19487.5626 | T73: S | U73: =U45+U14 -> -105897.7699 | V73: =V45+V14 -> 100.329141 | W73: =W45+W14 -> 825.5883494 | X73: =X45+Z22+X14 -> 1876.810634 | Z73: < Supply | AD73: 0 | AF73: 0 | AH73: =-SUM(AI73:AK73) -> 0
U74: 0 | V74: 1 | W74: 2 | X74: L | AE74: Transfers | AG74: FI | AH74: 0 | AI74: 1 | AJ74: 2 | AK74: L
E75: Domestic | G75: T | AC75: 0 | AD75: 0 | AE75: 0 | AF75: 0 | AG75: 0 | AH75: =-SUM(AI75:AK75) -> 0 | AI75: 0 | AJ75: 0 | AK75: 0 | AL75: 0
E76: Investment | F76: > | G76: 9.806587997 | Z76: Demand | AC76: 1 | AD76: =-AH76 -> -3.662521943 | AE76: 1 | AF76: -1.272988639e-09 | AG76: 1 | AH76: =-SUM(AI76:AK76) -> 3.662521943 | AI76: 0 | AJ76: =(AF45-AF44)*(V0-Iota)*(E20+E21) -> -3.662521943 | AL76: 1 | AM76: Equity
E77: Term | G77: =ITerm -> 7 | T77: F | U77: ='Econ 0'!U20 -> 0.9987873977 | V77: ='Econ 0'!V20 -> 0.9990744282 | W77: ='Econ 0'!W20 -> 0.9990253592 | X77: ='Econ 0'!X20 -> 0.9990101685 | Z77: < Factors | AC77: 2 | AD77: =-AH77 -> 3.662521943 | AE77: 2 | AF77: 1.272988639e-09 | AG77: 2 | AH77: =-SUM(AI77:AK77) -> -3.662521943 | AI77: =-AJ76 -> 3.662521943 | AJ77: 0 | AL77: 2 | AM77: < Markets
U78: 0 | V78: 1 | W78: 2 | X78: L | AC78: L | AD78: 0 | AE78: L | AF78: 0 | AG78: L | AH78: =-SUM(AI78:AK78) -> 0 | AL78: L
R80: Trade Balance | Z80: imports ( - )
E81: =P0_1*'Econ 0'!M58 -> 16215.02096 | G81: =P0_1*'Econ 0'!O58 -> 0 | I81: =I25+DT*(U81-I$9*I25*3) -> 263.9508502 | J81: =J25+DT*(V81-J$9*J25*3) -> -5.480260838 | K81: =K25+DT*(W81-K$9*K25*3) -> 28.10584012 | L81: =L25+DT*(X81-L$9*L25*3) -> -52.75628198 | Q81: =AD73+AD81 -> -1701.0011 | S81: =AF73+AF81 -> 0 | U81: ='Econ 0'!U37 -> 791.8602246 | V81: ='Econ 0'!V37 -> -1.64992005 | W81: ='Econ 0'!W37 -> 28.10025757 | X81: ='Econ 0'!X37 -> -158.240558 | Z81: < eXports ( + ) | AD81: =IF(AH81>0,-AH81,0) -> -1701.0011 | AF81: =IF(AH81<0,-AH81,0) -> 0 | AH81: =AH$49*U81 -> 1701.0011 | AI81: =AI$49*V81 -> -1543.867722 | AJ81: =AJ$49*W81 -> 3195.747657 | AK81: =AK$49*X81 -> -3352.881035
H82: A | I82: 0 | J82: 1 | K82: 2 | L82: L | R82: r | T82: R | U82: 0 | V82: 1 | W82: 2 | X82: L | AE82: - NCF | AG82: PR | AH82: 0 | AI82: 1 | AJ82: 2 | AK82: L
D83: 0 | E83: =E27+DT*(Q83-Iota1*E19) -> 0 | F83: 0 | G83: =G27+DT*(S83-Nu_1*G19+G51-3*G27/Term1) -> 0 | H83: 0 | I83: =I27+DT*(U83-I$9*I27*3) -> 35299.54953 | J83: -334.41219 | K83: -825.5763364 | L83: -2922 | M83: 0 | P83: 0 | Q83: =AD75+AD83 -> 0 | R83: 0 | S83: =AF75+AF83 -> 0 | T83: 0 | U83: =-U81-SUM(U84:U86) -> 105897.7699 | V83: =-V45 -> -100.329141 | W83: =-W45 -> -825.5883494 | X83: =-X45 -> -8766 | Y83: 0 | Z83: < Output ( - ) | AC83: 0 | AD83: =AH83-AH83 -> 0 | AE83: 0 | AF83: =AH83-AH83 -> 0 | AG83: 0 | AH83: =-AH81-SUM(AH84:AH86) -> 227538.4556 | AI83: =-AI81-SUM(AI84:AI86) -> -93880.25944 | AJ83: =-AJ81-SUM(AJ84:AJ86) -> -93891.38254 | AK83: =-AK81-SUM(AK84:AK86) -> -39766.81365 | AL83: 0
D84: 1 | E84: =E28+DT*(Q84-Iota1*E20) -> 81438.36102 | F84: 1 | G84: =G28+DT*(S84-Nu_1*G20+G52-3*G28/Term1) -> -1.412116948e-08 | H84: 1 | I84: -13241.90562 | J84: 165.3893823 | K84: 162.8931031 | L84: 320.879482 | M84: 1 | P84: 1 | Q84: -8527.430823 | R84: 1 | S84: -1.272988639e-09 | T84: 1 | U84: =U$77*U65 -> -39725.28333 | V84: 49.62488504 | W84: 162.8905113 | X84: 962.6147296 | Y84: 1 | AC84: 1 | AD84: =AI83-AH84 -> -8523.768301 | AE84: 1 | AF84: 0 | AG84: 1 | AH84: =-SUM(AI84:AK84) -> -85356.49114 | AI84: =AI$49*V84 -> 46435.13376 | AJ84: 18524.98926 | AK84: 20396.36812 | AL84: 1 | AM84: Monetary
D85: 2 | E85: =E29+DT*(Q85-Iota1*E21) -> 88286.837 | F85: 2 | G85: =G29+DT*(S85-Nu_1*G21+G53-3*G29/Term1) -> 1.412116948e-08 | H85: 2 | I85: -13131.26402 | J85: 106.8700436 | K85: 280.6262499 | L85: 357.4838331 | M85: 2 | P85: 2 | Q85: -9244.992504 | R85: 2 | S85: 1.272988639e-09 | T85: 2 | U85: -39393.47902 | V85: 32.06486639 | W85: 280.6341441 | X85: 1072.436462 | Y85: 2 | Z85: < Rates of | AC85: 2 | AD85: =AJ83-AH85 -> -9248.655026 | AE85: 2 | AF85: 0 | AG85: 2 | AH85: =-SUM(AI85:AK85) -> -84642.72751 | AI85: 30003.82487 | AJ85: 31915.57608 | AK85: 22723.32657 | AL85: 2 | AM85: < Transactions
D86: L | E86: =E30+DT*(Q86-Iota1*E22) -> 0 | F86: L | G86: =G30+DT*(S86-Nu_1*G22+G54-3*G30/Term1) -> -38447.32659 | H86: L | I86: -9190.330746 | J86: 67.63302482 | K86: 353.9511433 | L86: 2296.392967 | M86: L | P86: L | Q86: 0 | R86: L | S86: 19473.42443 | T86: L | U86: =U$77*U67 -> -27570.86774 | V86: =V$77*V67 -> 20.28930962 | W86: =W$77*W67 -> 353.9634365 | X86: =-X81-SUM(X83:X85) -> 6889.189366 | Y86: L | Z86: Change | AC86: L | AD86: 0 | AE86: L | AF86: =AK83-AH86 -> 19473.42443 | AG86: L | AH86: =-SUM(AI86:AK86) -> -59240.23808 | AI86: =AI$49*V86 -> 18985.16854 | AJ86: =AJ$49*W86 -> 40255.06954 | AK86: 0 | AL86: L
Q87: Debt Service | S87: Passive Income | AD87: Cost of Sales | AF87: Consumption
AD88: Minus Sales | AF88: Minus Wages
G89: =P0_1*'Econ 0'!O63 -> 0 | I89: =I33+DT*I$9*3*(I25-I33) -> 263.9481756 | J89: =J33+DT*J$9*3*(J25-J33) -> -5.458080948 | K89: =K33+DT*K$9*3*(K25-K33) -> 28.1115016 | L89: =L33+DT*L$9*3*(L25-L33) -> -52.76619647 | Q89: =GPE!A8 -> 0 | S89: =GPE!C8 -> -0.2886111448 | U89: =GPE!E8 -> 0 | V89: =GPE!F8 -> 0 | W89: =GPE!G8 -> 0 | X89: =GPE!H8 -> 0
H90: B | I90: 0 | J90: 1 | K90: 2 | L90: L | R90: r | T90: R | U90: 0 | V90: 1 | W90: 2 | X90: L
F91: 0 | G91: =G35+DT*3*(G27-G35)/Term1 -> 0 | H91: 0 | I91: =I35+DT*I$9*3*(I27-I35) -> 35299.85783 | J91: -334.3872334 | K91: -825.5633136 | L91: -2922 | M91: 0 | P91: 0 | Q91: =GPE!C10 -> 0 | R91: 0 | S91: =GPE!A10 -> 0 | T91: 0 | U91: =GPE!E10 -> 104588.8261 | V91: =GPE!F10 -> -100 | W91: =GPE!G10 -> -750 | X91: =GPE!H10 -> -8766 | Y91: 0
F92: 1 | G92: =G36+DT*3*(G28-G36)/Term1 -> -1.27341202e-08 | H92: 1 | I92: -13242.05816 | J92: 165.3531804 | K92: 162.8961428 | L92: 320.8878072 | M92: 1 | P92: 1 | Q92: =GPE!C11 -> -8035.153798 | R92: 1 | S92: =GPE!A11 -> 0 | T92: 1 | U92: =GPE!E11 -> -40175.76899 | V92: =GPE!F11 -> 50 | W92: =GPE!G11 -> 150 | X92: =GPE!H11 -> 1000 | Y92: 1
C93: System State | F93: 2 | G93: =G37+DT*3*(G29-G37)/Term1 -> 1.27341202e-08 | H93: 2 | I93: -13131.37347 | J93: 106.8559806 | K93: 280.6178083 | L93: 357.4890878 | M93: 2 | P93: 2 | Q93: =GPE!C12 -> -7344.632768 | R93: 2 | S93: =GPE!A12 -> 0 | T93: 2 | U93: =GPE!E12 -> -36723.16384 | V93: =GPE!F12 -> 30 | W93: =GPE!G12 -> 250 | X93: =GPE!H12 -> 1000 | Y93: 2
C94: @ time = t + d > | F94: L | G94: =G38+DT*3*(G30-G38)/Term1 -> -38432.3532 | H94: L | I94: -9190.374366 | J94: 67.63615332 | K94: 353.9378609 | L94: 2296.389301 | M94: L | P94: L | Q94: =GPE!A13 -> 0 | R94: L | S94: =GPE!C13 -> 15379.78657 | T94: L | U94: =GPE!E13 -> -27689.89328 | V94: =GPE!F13 -> 20 | W94: =GPE!G13 -> 350 | X94: =GPE!H13 -> 6766 | Y94: L
G97: =P0_1*'Econ 0'!O68 -> 0 | I97: =I41+DT*I$9*3*(I33-I41) -> 263.9454868 | J97: =J41+DT*J$9*3*(J33-J41) -> -5.430737724 | K97: =K41+DT*K$9*3*(K33-K41) -> 28.11701826 | L97: =L41+DT*L$9*3*(L33-L41) -> -52.77631332 | S97: u
H98: C | I98: 0 | J98: 1 | K98: 2 | L98: L | S98: (h/w-1)
F99: 0 | G99: =G43+DT*3*(G35-G43)/Term1 -> 0 | H99: 0 | I99: =I43+DT*I$9*3*(I35-I43) -> 35300.17274 | J99: -334.3501013 | K99: -825.5492778 | L99: -2922 | M99: 0 | T99: 0
F100: 1 | G100: =G44+DT*3*(G36-G44)/Term1 -> -1.134709937e-08 | H100: 1 | I100: -13242.21448 | J100: 165.3048311 | K100: 162.8996848 | L100: 320.896317 | M100: 1 | S100: =AF56/(S7/S28-1) -> -8535.107788 | T100: 1
F101: 2 | G101: =G45+DT*3*(G37-G45)/Term1 -> 1.134709937e-08 | H101: 2 | I101: -13131.48489 | J101: 106.8355358 | K101: 280.6089275 | L101: 357.4944337 | M101: 2 | S101: =AF57/(S8/S29-1) -> -9253.039943 | T101: 2
F102: L | G102: =G46+DT*3*(G38-G46)/Term1 -> -38412.70175 | H102: L | I102: -9190.418856 | J102: 67.64047214 | K102: 353.9236471 | L102: 2296.385563 | M102: L | S102: =AF58/(S9/S30-1) -> 19488.13914 | T102: L
L105: =L49+DT*S105 -> -10354.07367 | S105: =(S102-S22)/AK49/(1-Z30) -> 0.0408950868 | T105: < | U105: ∂ZL/∂t
L106: =Utility!M45 -> -10219.74286

Sheet Econ 2
AI4: =-SUM(AI6:AI9) -> -2069.208993 | AJ4: =-SUM(AJ6:AJ9) -> -16224.93656 | AK4: =-SUM(AK6:AK9) -> -53933.19079
F5: < Temporal Parameters, i.e.: Turnover Fractions > | T5: H | U5: 0 | V5: 1 | W5: 2 | X5: L | AG5: U | AH5: 0 | AI5: 1 | AJ5: 2 | AK5: L | AL5: t | AM5: Z | AO5: Z
T6: 0 | V6: 1 | W6: 1 | X6: 0 | Y6: 0 | AG6: 0 | AI6: 794.2843664 | AJ6: 5693.503722 | AK6: 8766 | AL6: 0 | AM6: =Z19+AM19 -> -633827.592 | AO6: =Utility!E28 -> -643139.1648 | AP6: 0
S7: =1-U7 -> 4 | T7: 1 | U7: =-SUM(V7:X7) -> -3 | V7: =SIGN(AI7) -> 1 | W7: 1 | X7: 1 | Y7: 1 | Z7: =1/(1-U7) -> 0.25 | AF7: Spatial Parameters, | AG7: 1 | AI7: 644.2843664 | AJ7: 5546.692237 | AK7: 29682.74915 | AL7: 1 | AM7: =AI6 -> 794.2843664 | AO7: =Utility!M14 -> 794.2843664 | AP7: 1
E8: i | G8: n | I8: V0 | S8: =1-U8 -> 4 | T8: 2 | U8: =-SUM(V8:X8) -> -3 | V8: 1 | W8: 1 | X8: 1 | Y8: 2 | Z8: =1/(1-U8) -> 0.25 | AF8: i.e.: production and | AG8: 2 | AI8: 572.4895161 | AJ8: 4693.503722 | AK8: 25626.02758 | AL8: 2 | AM8: =AJ6 -> 5693.503722 | AO8: =Utility!M30 -> 5693.503722 | AP8: 2
E9: =-E60 -> -0.09954540732 | G9: =(1-1/NPV_2)/Term2 -> -0.1070490473 | I9: =V0 -> 1 | J9: =IState!H13 -> 0.1 | K9: =IState!I13 -> 0.3333333333 | L9: =IState!J13 -> 1 | N9: < V | S9: =X9-U9 -> 1 | T9: L | U9: =-SUM(V9:W9) -> -2 | V9: 1 | W9: 1 | X9: -1 | Y9: L | Z9: =1/(1-U9) -> 0.3333333333 | AF9: utility tradeoffs > | AG9: L | AI9: 58.15074408 | AJ9: 291.2368745 | AK9: =Zl_2 -> -10141.58594 | AL9: L | AM9: =L9*L49 -> -10141.58594 | AN9: ZL | AO9: =Utility!M45 -> -10219.74286 | AP9: L
E10: =IState!C13 -> -0.1 | G10: =IState!E13 -> -0.1355310143 | I10: 0 | J10: 1 | K10: 2 | L10: L | S10: h | U10: -N | Z10: 1/(N + 1)
C13: Contra- | E13: -k | G13: -g | AG13: __
C14: Accounts > | E14: =E17+SUM(E19:E22) -> 144992.2158 | G14: =G17+SUM(G19:G22) -> -134828.9363 | I14: 0 | J14: 0 | K14: 0 | L14: 0 | N14: < Markets | Q14: =E9*Kappa2 -> -14433.30918 | S14: =G9*Gamma2 -> 14433.30918 | U14: =I$9*I14 -> 0 | V14: =J9*J14 -> 0 | W14: =K9*K14 -> 0 | X14: =L9*L14 -> 0 | Z14: < Market Pressure | AF14: =SUM(AF56:AF58) -> 4413718.521 | AG14: U | AH14: =SUM(U56:U58) -> -1658478.578 | AI14: =SUM(AI7:AI9) -> 1274.924627 | AJ14: =SUM(AJ7:AJ9) -> 10531.43283 | AK14: =SUM(AK7:AK8) -> 55308.77673
I15: 0 | J15: 1 | K15: 2 | L15: L | U15: 0 | V15: 1 | W15: 2 | X15: L | AH15: 0 | AI15: 1 | AJ15: 2 | AK15: L
R16: Balance of Payments
E17: =E25 -> 0 | G17: =G25+G33+G41 -> -14105.92017 | I17: =I25+I33+I41 -> -791.8143923 | J17: =J25+J33+J41 -> 16.36804079 | K17: =K25+K33+K41 -> -84.33532237 | L17: =L25+L33+L41 -> 158.2992424 | Q17: =Iota2*E17 -> 0 | S17: =Nu_2*G17 -> 1510.025314 | U17: =I$9*I17 -> -791.8143923 | V17: =J$9*J17 -> 1.636804079 | W17: =K$9*K17 -> -28.11177412 | X17: =L$9*L17 -> 158.2992424 | AF17: =AF53+Q17+S17 -> -4412208.496 | AH17: =U53+U17 -> 2291540.596 | AI17: =AI4+V17 -> -2067.572189 | AJ17: =AJ4+W17 -> -16253.04833 | AK17: =AK4+X17 -> -53774.89155
I18: 0 | J18: 1 | K18: 2 | L18: L | R18: e | T18: E | U18: 0 | V18: 1 | W18: 2 | X18: L | Z18: Y | AF18: u + e | AG18: m | AH18: 0 | AI18: 1 | AJ18: 2 | AK18: L | AM18: l | AO18: (u + e)/h
D19: 0 | E19: =E27 -> 0 | F19: 0 | G19: =G27+G35+G43 -> 0 | H19: 0 | I19: =I27+I35+I43 -> 103278.0398 | J19: -1001.411363 | K19: -2223.7927 | L19: -8766 | M19: 0 | P19: 0 | Q19: =Iota2*E19 -> 0 | R19: 0 | S19: =Nu_2*G19 -> 0 | T19: 0 | U19: =I$9*I19 -> 103278.0398 | V19: -100.1411363 | W19: -741.2642333 | X19: -8766 | Y19: 0 | Z19: =U45 -> -103279.8824 | AB19: =-GPE!E10 -> -104588.8261 | AF19: =AF55+Q19+S19 -> 0 | AG19: 0 | AH19: =AM19 -> -530547.7096 | AI19: =AM20 -> 694.0583155 | AJ19: =AM21 -> 4952.113225 | AK19: =AK6+X19 -> 0 | AL19: 0 | AM19: =-V49*AM20-W49*AM21-X49*AM22 -> -530547.7096 | AN19: 0 | AP19: 0
C20: Monetary > | D20: 1 | E20: =E28 -> 76686.32785 | F20: 1 | H20: 1 | I20: -39690.22158 | J20: 495.5952021 | K20: 487.9397606 | L20: 961.4484337 | M20: 1 | N20: < Physical | P20: 1 | Q20: =Iota2*E20 -> -7633.771741 | R20: 1 | S20: =Nu_2*G20 -> 0 | T20: 1 | U20: -39690.22158 | V20: 49.55952021 | W20: 162.6465869 | X20: 961.4484337 | Y20: 1 | Z20: =AM7-AM20 -> 100.2260509 | AA20: < Production | AF20: 2328076.246 | AG20: 1 | AH20: =U56+U20 -> -906784.1844 | AI20: =AI7+V20 -> 693.8438866 | AJ20: 5709.338824 | AK20: =AK7+X20 -> 30644.19758 | AL20: 1 | AM20: =AM7*Z28 -> 694.0583155 | AN20: 1 | AO20: =AF20/S7 -> 582019.0615 | AP20: 1
C21: Stocks | D21: 2 | E21: =E29 -> 68305.88793 | F21: 2 | H21: 2 | I21: -35713.67812 | J21: 292.2454095 | K21: 772.2656885 | L21: 948.0670867 | M21: 2 | N21: Stocks | P21: 2 | Q21: =Iota2*E21 -> -6799.537436 | R21: 2 | S21: =Nu_2*G21 -> 0 | T21: 2 | U21: -35713.67812 | V21: 29.22454095 | W21: 257.4218962 | X21: 948.0670867 | Y21: 2 | Z21: =AM8-AM21 -> 741.3904975 | AD21: U + E | AE21: > | AF21: 2018873.906 | AG21: 2 | AH21: =U57+U21 -> -786348.7721 | AI21: 601.7140571 | AJ21: 4950.925618 | AK21: =AK8+X21 -> 26574.09467 | AL21: 2 | AM21: =AM8*Z29 -> 4952.113225 | AN21: 2 | AO21: =AF21/S8 -> 504718.4765 | AP21: 2
D22: L | F22: L | G22: =G30+G38+G46 -> -120723.0162 | H22: L | I22: -27082.32576 | J22: 197.2027108 | K22: 1047.922573 | L22: 6698.185237 | M22: L | P22: L | Q22: =Iota2*E22 -> 0 | R22: L | S22: =Nu_2*G22 -> 12923.28386 | T22: L | U22: -27082.32576 | V22: 19.72027108 | W22: 349.3075244 | X22: 6698.185237 | Y22: L | Z22: =AM9-AM22 -> -6698.225873 | AA22: < | AB22: YL = - Leisure | AF22: =AF58+Q22+S22 -> 65258.34373 | AG22: L | AH22: =U58+U22 -> -67831.84687 | AI22: 77.87101515 | AJ22: 640.5443989 | AK22: =AM22 -> -3443.360068 | AL22: L | AM22: =AM9*Z30 -> -3443.360068 | AN22: L | AO22: =AF22/S9 -> 65258.34373 | AP22: L
E23: Investment | G23: Saving | Q23: - Dividends | S23: + Dividends | Z23: =Utility!M41 -> -6766
Q24: Created | S24: Absorbed
E25: 0 | G25: -4713.09883 | I25: -263.9410283 | J25: 5.480075064 | K25: -28.10614352 | L25: 52.75642955 | V25: - Y/l
H26: A | I26: 0 | J26: 1 | K26: 2 | L26: L | S26: w | T26: W | U26: 0 | V26: 1 | W26: 2 | X26: L | Z26: l/Z | AF26: b = e/w | AH26: Q = E0/W0 | AM26: z = pl | AO26: q = P0Q
D27: 0 | E27: 0 | F27: 0 | G27: 0 | H27: 0 | I27: 34426.32402 | J27: -333.9676008 | K27: -741.3296713 | L27: -2922 | M27: 0 | T27: 0 | U27: =-Z19/AM19 -> -0.1946665314 | V27: =-Z20/AI19 -> -0.1444058066 | W27: =-Z21/AJ19 -> -0.1497119439 | Y27: 0 | Z27: =AM19/AM6 -> 0.8370536662 | AE27: 0 | AG27: 0 | AL27: 0 | AN27: 0 | AP27: 0
D28: 1 | E28: 76686.32785 | F28: 1 | G28: -1.308244628e-08 | H28: 1 | I28: -13230.19765 | J28: 165.2757269 | K28: 162.660934 | L28: 320.4838014 | M28: 1 | Q28: E | R28: > | S28: =V27-U28 -> -0.0131159449 | T28: 1 | U28: =-SUM(V28:X28) -> -0.1312898617 | V28: =V20/AI20 -> 0.07142747982 | W28: 0.02848781477 | X28: 0.03137456711 | Y28: 1 | Z28: =(1-V28)*(1-W28)*(1-X28) -> 0.8738159089 | AE28: 1 | AF28: =Q20/S28 -> 582022.2483 | AG28: 1 | AH28: =U20/U28 -> 302309.8742 | AL28: 1 | AM28: =(AM44*AM7*AM56)^Z7 -> 582013.6164 | AN28: 1 | AO28: =P0_2*AH28 -> 582075.5686 | AP28: 1
D29: 2 | E29: 68305.88793 | F29: 2 | G29: 1.308244628e-08 | H29: 2 | I29: -11904.6835 | J29: 97.46136224 | K29: 257.4442282 | L29: 316.0245087 | M29: 2 | Q29: U + E | S29: =W27-U29 -> -0.01347205998 | T29: 2 | U29: =-SUM(V29:X29) -> -0.136239884 | V29: 0.0485688187 | W29: 0.05199470079 | X29: 0.03567636447 | Y29: 2 | Z29: =(1-V29)*(1-W29)*(1-X29) -> 0.8697830837 | AE29: 2 | AF29: =Q21/S29 -> 504714.0116 | AG29: 2 | AH29: =U21/U29 -> 262138.2012 | AL29: 2 | AM29: =(AM45*AM8*AM57)^Z8 -> 504713.9911 | AN29: 2 | AO29: =P0_2*AH29 -> 504727.9481 | AP29: 2
D30: L | E30: 0 | F30: L | G30: -40251.03957 | H30: L | I30: -9027.50184 | J30: 65.75043664 | K30: 349.3306526 | L30: 2232.73526 | M30: L | S30: =X30-U30 -> 0.1980613278 | T30: L | U30: =-SUM(V30:W30) -> -0.7985719008 | V30: =V22/AI22 -> 0.2532427636 | W30: =W22/AJ22 -> 0.5453291372 | X30: =(AK6+Z22)/AK22 -> -0.600510573 | Y30: L | Z30: =(1-V30)*(1-W30) -> 0.339528757 | AE30: L | AF30: =S22/S30 -> 65248.90045 | AG30: L | AH30: =U22/U30 -> 33913.4469 | AL30: L | AM30: =(AM46*AM9*AM58)^Z9 -> 65334.62133 | AN30: L | AO30: =P0_2*AH30 -> 65297.86345 | AP30: L
X31: (t+Y) /l
G33: -4702.718237 | I33: -263.9381367 | J33: 5.457790632 | K33: -28.11182243 | L33: 52.76634669 | S33: =S35-U33 -> -2291705.749 | U33: =-SUM(V33:X33) -> 2291705.749 | V33: =-SUM(V35:V38) -> -900671.3966 | W33: =-SUM(W35:W38) -> -860499.7236 | X33: =-SUM(X35:X38) -> -530534.6286 | AF33: =AF35-AH33 -> -4412193.94 | AH33: =-SUM(AI33:AK33) -> 4412193.94 | AI33: =-SUM(AI35:AI38) -> -1734007.409 | AJ33: =-SUM(AJ35:AJ38) -> -1656699.172 | AK33: =-SUM(AK35:AK38) -> -1021487.359
H34: B | I34: 0 | J34: 1 | K34: 2 | L34: L | S34: hQ | T34: HQ | U34: 0 | V34: 1 | W34: 2 | X34: L | AF34: hb | AG34: Hb | AH34: 0 | AI34: 1 | AJ34: 2 | AK34: L | AO34: (PU + s)/N
F35: 0 | G35: 0 | H35: 0 | I35: 34426.01549 | J35: -333.816047 | K35: -741.2653789 | L35: -2922 | M35: 0 | R35: 0 | S35: =U35-U35 -> 0 | T35: 0 | U35: =-U33-SUM(U36:U38) -> -530534.6286 | V35: =V6*AH28 -> 302309.8742 | W35: =W6*AH29 -> 262138.2012 | X35: =X6*AH30 -> 0 | Y35: 0 | AE35: 0 | AF35: =AH35-AH35 -> 0 | AG35: 0 | AH35: =-AH33-SUM(AH36:AH38) -> -1021487.359 | AI35: =V6*AF28 -> 582022.2483 | AJ35: =W6*AF29 -> 504714.0116 | AK35: =X6*AF30 -> 0 | AL35: 0 | AP35: 0
F36: 1 | G36: -1.273008546e-08 | H36: 1 | I36: -13230.07471 | J36: 165.2057237 | K36: 162.6468299 | L36: 320.4828209 | M36: 1 | R36: 1 | S36: =S7*$AH28 -> 1209239.497 | T36: 1 | U36: =U7*$AH28 -> -906929.6227 | V36: 302309.8742 | W36: 302309.8742 | X36: 302309.8742 | Y36: 1 | AE36: 1 | AF36: =S7*$AF28 -> 2328088.993 | AG36: 1 | AH36: =U7*$AF28 -> -1746066.745 | AI36: 582022.2483 | AJ36: 582022.2483 | AK36: 582022.2483 | AL36: 1 | AO36: =(AH56+AH84)/U7 -> 581989.3468 | AP36: 1
C37: System State | F37: 2 | G37: 1.273008546e-08 | H37: 2 | I37: -11904.56031 | J37: 97.41744022 | K37: 257.4223443 | L37: 316.0223821 | M37: 2 | R37: 2 | S37: =S8*$AH29 -> 1048552.805 | T37: 2 | U37: -786414.6037 | V37: 262138.2012 | W37: 262138.2012 | X37: 262138.2012 | Y37: 2 | AE37: 2 | AF37: =S8*$AF29 -> 2018856.046 | AG37: 2 | AH37: -1514142.035 | AI37: 504714.0116 | AJ37: 504714.0116 | AK37: 504714.0116 | AL37: 2 | AO37: =(AH57+AH85)/U8 -> 504691.9338 | AP37: 2
C38: @ time = t > | F38: L | G38: -40241.21317 | H38: L | I38: -9027.442336 | J38: 65.73509243 | K38: 349.3080271 | L38: 2232.72845 | M38: L | R38: L | S38: =S9*$AH30 -> 33913.4469 | T38: L | U38: -67826.89381 | V38: 33913.4469 | W38: 33913.4469 | X38: -33913.4469 | Y38: L | AE38: L | AF38: =S9*$AF30 -> 65248.90045 | AG38: L | AH38: -130497.8009 | AI38: 65248.90045 | AJ38: 65248.90045 | AK38: -65248.90045 | AL38: L | AO38: =(AH58+AH86)/U9 -> 65309.58516 | AP38: L
T40: __ | AE40: Intersection of
G41: -4690.103098 | I41: -263.9352272 | J41: 5.430175098 | K41: -28.11735642 | L41: 52.7764662 | S41: =SUM(S36:S38) -> 2291705.749 | T41: Q | U41: =SUM(U36:U38) -> -1761171.12 | V41: =SUM(V36:V38) -> 598361.5224 | W41: =SUM(W36:W38) -> 598361.5224 | X41: =SUM(X36:X37) -> 564448.0755 | AE41: S/D Schedules > | AF41: =AF33/AF17 -> 0.9999967011 | AH41: =AH33/AH17 -> 1.925426915 | AI41: =AI33/AI17 -> 838.6683753 | AJ41: =AJ33/AJ17 -> 101.931597 | AK41: =AK33/AK17 -> 18.99561915 | AP41: 1/(N+1)
H42: C | I42: 0 | J42: 1 | K42: 2 | L42: L | U42: 0 | V42: 1 | W42: 2 | X42: L | AG42: c Hb/m | AH42: 0 | AI42: 1 | AJ42: 2 | AK42: L | AM42: p | AO42: (pZPU)
F43: 0 | G43: 0 | H43: 0 | I43: 34425.70034 | J43: -333.6277154 | K43: -741.1976497 | L43: -2922 | M43: 0 | AE43: Marginal Costs of Production > | AF43: 1 | AG43: 0 | AH43: =AH35/AH19 -> 1.925344961 | AI43: 838.5783086 | AJ43: 101.918916 | AL43: 0 | AN43: 0 | AP43: 0
F44: 1 | G44: -1.237712742e-08 | H44: 1 | I44: -13229.94922 | J44: 165.1137515 | K44: 162.6319967 | L44: 320.4818114 | M44: 1 | U44: =-GPE!E10 -> -104588.8261 | V44: =-GPE!F10 -> 100 | W44: =-GPE!G10 -> 750 | X44: =-GPE!H10 -> 8766 | AF44: =AF36/AF20 -> 1.000005475 | AG44: 1 | AH44: 1.925559328 | AI44: 838.8374669 | AJ44: 101.9421454 | AK44: =AK36/AK20 -> 18.99290222 | AL44: 1 | AM44: =AI49 -> 838.7222412 | AN44: 1 | AO44: =(AM44*AM7*AM56)^Z7 -> 582013.6164 | AP44: 1
F45: 2 | G45: 1.237712742e-08 | H45: 2 | I45: -11904.43431 | J45: 97.36660705 | K45: 257.399116 | L45: 316.0201959 | M45: 2 | Q45: =-Q83 -> 0 | S45: =-S83 -> 0 | T45: Yt | U45: =-U83 -> -103279.8824 | V45: =Z20 -> 100.2260509 | W45: =Z21 -> 741.3904975 | X45: =AK6 -> 8766 | Z45: < Output | AE45: Values of > | AF45: =AF37/AF21 -> 0.9999911538 | AG45: 2 | AH45: 1.925534939 | AI45: 838.7937853 | AJ45: 101.9433638 | AK45: =AK37/AK21 -> 18.99270767 | AL45: 2 | AM45: =AJ49 -> 101.9373058 | AN45: 2 | AO45: =(AM45*AM8*AM57)^Z8 -> 504713.9911 | AP45: 2
F46: L | G46: -40230.76342 | H46: L | I46: -9027.381581 | J46: 65.71718172 | K46: 349.2838935 | L46: 2232.721526 | M46: L | U46: 0 | V46: 1 | W46: 2 | X46: L | AE46: Marginal Product | AF46: =AF38/AF22 -> 0.9998552939 | AG46: L | AH46: 1.923842663 | AI46: 837.9099761 | AJ46: 101.8647584 | AK46: =AK38/AK22 -> 18.94919473 | AL46: L | AM46: =-AK49 -> -18.99202666 | AN46: L | AO46: =(AM46*AM9*AM58)^Z9 -> 65334.62133 | AP46: L
S48: =AF48/AH48 -> 0.5 | U48: =GPE!E18/GPE!$E18 -> 1 | V48: =GPE!F18/GPE!$E18 -> 441.9334589 | W48: =GPE!G18/GPE!$E18 -> 53.8606403 | X48: =GPE!H18/GPE!$E18 -> 10 | AF48: 1 | AH48: =GPE!E18 -> 2 | AI48: =GPE!F18 -> 883.8669178 | AJ48: =GPE!G18 -> 107.7212806 | AK48: =GPE!H18 -> 20
G49: =3*G41/Term2 -> -5647.826289 | L49: -10141.58594 | R49: Currency > | S49: =(S53-U17)/AF33 -> 0.5193653377 | T49: Y | U49: ='Econ 0'!H19 -> 1.000015183 | V49: ='Econ 0'!I19 -> 435.60326 | W49: ='Econ 0'!J19 -> 52.94270325 | X49: ='Econ 0'!K19 -> 9.863800342 | Z49: < Values | AE49: Prices > | AF49: =P0_2*S49 -> 1 | AG49: P | AH49: =AH33/(U53+U17) -> 1.925426915 | AI49: =P0_2*V49 -> 838.7222412 | AJ49: =P0_2*W49 -> 101.9373058 | AK49: =P0_2*X49 -> 18.99202666
Q50: Value | S50: G/$ | U50: 0 | V50: 1 | W50: 2 | X50: L | Z50: G/unit | AD50: $/unit | AF50: $/$ | AH50: 0 | AI50: 1 | AJ50: 2 | AK50: L
F51: 0 | G51: =3*G43/Term2 -> 0 | H51: 0
F52: 1 | G52: =3*G44/Term2 -> -1.490454776e-08 | H52: 1
E53: Maturing > | F53: 2 | G53: =3*G45/Term2 -> 1.490454776e-08 | H53: 2 | S53: =S55-U53 -> -2292332.41 | U53: =-SUM(V53:X53) -> 2292332.41 | V53: =V$49*AI4 -> -901354.1831 | W53: =W$49*AJ4 -> -858992.0014 | X53: =X$49*AK4 -> -531986.2258 | AF53: =AF55-AH53 -> -4413718.521 | AH53: =-SUM(AI53:AK53) -> 4413718.521 | AI53: =AI$49*AI4 -> -1735491.604 | AJ53: =AJ$49*AJ4 -> -1653926.319 | AK53: =AK$49*AK4 -> -1024300.598
E54: Principal | F54: L | G54: =3*G46/Term2 -> -48445.9208 | H54: L | S54: ¡ | T54: YU | U54: 0 | V54: 1 | W54: 2 | X54: L | AF54: u | AG54: PU | AH54: 0 | AI54: 1 | AJ54: 2 | AK54: L | AM54: PU
R55: 0 | S55: =U55-U55 -> 0 | T55: 0 | U55: =-U53-SUM(U56:U58) -> -633853.8324 | V55: =V$49*AI6 -> 345992.8594 | W55: 301429.478 | X55: 86466.0738 | Y55: 0 | AF55: =AH55-AH55 -> 0 | AG55: 0 | AH55: =-AH53-SUM(AH56:AH58) -> -1220439.229 | AI55: =AI$49*AI6 -> 666183.9639 | AJ55: 580380.43 | AK55: 166484.1057 | AL55: 0 | AN55: 0
R56: 1 | S56: =V55-U56 -> 1213086.822 | T56: 1 | U56: =-SUM(V56:X56) -> -867093.9628 | V56: 280652.3704 | W56: 293656.8811 | X56: 292784.7112 | Y56: 1 | Z56: Interaction | AE56: Interaction | AF56: =AI55-AH56 -> 2335710.018 | AG56: 1 | AH56: =-SUM(AI56:AK56) -> -1669526.054 | AI56: 540375.6278 | AJ56: 565414.8627 | AK56: 563735.5633 | AL56: 1 | AM56: =AI56*AJ56*AK56 -> 1.72241741e+17 | AN56: 1
R57: 2 | S57: =W55-U57 -> 1052064.572 | T57: 2 | U57: =-SUM(V57:X57) -> -750635.094 | V57: 249378.2996 | W57: 248486.7748 | X57: 252770.0196 | Y57: 2 | Z57: < of Utility | AE57: of Utility > | AF57: =AJ55-AH57 -> 2025673.443 | AG57: 2 | AH57: =-SUM(AI57:AK57) -> -1445293.013 | AI57: 480159.69 | AJ57: 478443.1242 | AK57: 486690.1991 | AL57: 2 | AM57: =AI57*AJ57*AK57 -> 1.118069025e+17 | AN57: 2
R58: L | S58: =X55+X58-U58 -> 27181.01604 | T58: L | U58: =-SUM(V58:W58) -> -40749.52111 | V58: 25330.65369 | W58: 15418.86742 | X58: -100034.5789 | Y58: L | Z58: with Values | AE58: with Prices | AF58: =AK55+AK58-AH58 -> 52335.05986 | AG58: L | AH58: =-SUM(AI58:AJ58) -> -78460.22473 | AI58: 48772.3224 | AJ58: 29687.90233 | AK58: -192609.2706 | AL58: L | AM58: =AI58*AJ58 -> 1447947944 | AN58: L
E59: - i | G59: Domestic
E60: =-I63/I60-V0_2 -> 0.09954540732 | F60: < | G60: Interest | I60: =-I20-I21 -> 75403.8997 | J60: < Asset Valuations, a | AH60: - PU
E61: -0.1 | G61: Rate | I61: 0
Q62: =IF(AF62/AF$49<AF53,AF62/AF$49-AF53,0) -> 0 | S62: =IF(AF62/AF$49>AF53,AF62/AF$49-AF53,0) -> 1473.469323 | U62: =AH62/AH$49-U53 -> -765.2688925 | V62: =AI62/AI$49-AI4 -> 1.687994854 | W62: =AJ62/AJ$49-AJ4 -> -27.95738789 | X62: =AK62/AK$49-AK4 -> 153.0964202 | AF62: =AF64-AH62 -> -4412245.052 | AH62: =-SUM(AI62:AK62) -> 4412245.052 | AI62: =-SUM(AI64:AI67) -> -1734075.845 | AJ62: =-SUM(AJ64:AJ67) -> -1656776.22 | AK62: =-SUM(AK64:AK67) -> -1021392.986
E63: Supply Valuations, YS | H63: > | I63: =-SUM(J63:K63) -> -82910.01161 | J63: =V49*V73 -> 43658.79451 | K63: =W49*W73 -> 39251.2171 | R63: -f | T63: Q | U63: 0 | V63: 1 | W63: 2 | X63: L | AF63: hz | AG63: Hz | AH63: 0 | AI63: 1 | AJ63: 2 | AK63: L
I64: 0 | J64: 1 | K64: 2 | P64: 0 | Q64: =IF(AF64/AF$49<AF55,AF64/AF$49-AF55,0) -> 0 | R64: 0 | S64: =IF(AF64/AF$49>AF55,AF64/AF$49-AF55,0) -> 0 | T64: 0 | U64: =AH64/AH$49-U55 -> 103377.7191 | V64: =AI64/AI$49-AI6 -> -100.3554495 | W64: -742.2840759 | X64: -8766 | Y64: 0 | AE64: 0 | AF64: =AH64-AH64 -> 0 | AG64: 0 | AH64: =-AH62-SUM(AH65:AH67) -> -1021392.986 | AI64: =V6*$AM28 -> 582013.6164 | AJ64: =W6*$AM29 -> 504713.9911 | AK64: =X6*$AM30 -> 0 | AL64: 0
P65: 1 | Q65: =AF65/AF$49-AF56 -> -7655.552091 | R65: 1 | T65: 1 | U65: =AH65/AH$49-U56 -> -39739.13257 | V65: 49.64455049 | W65: 162.8329642 | X65: 962.4066691 | Y65: 1 | Z65: Optimal | AE65: 1 | AF65: =S7*$AM28 -> 2328054.466 | AG65: 1 | AH65: =U7*$AM28 -> -1746040.849 | AI65: 582013.6164 | AJ65: 582013.6164 | AK65: 582013.6164 | AL65: 1
I66: NPV | J66: 1 | P66: 2 | Q66: =AF66/AF$49-AF57 -> -6817.478701 | R66: 2 | T66: 2 | U66: =AH66/AH$49-U57 -> -35757.76343 | V66: 29.27584355 | W66: 257.7159241 | X66: 949.0188897 | Y66: 2 | Z66: < Rates of | AE66: 2 | AF66: =S8*$AM29 -> 2018855.965 | AG66: 2 | AH66: -1514141.973 | AI66: 504713.9911 | AJ66: 504713.9911 | AK66: 504713.9911 | AL66: 2
E67: Investment | G67: =LN(1+E60)*(1+E60)^Term2-E60*Kappa2/Gamma2 -> 0.2272547819 | I67: =1/(1-E60*Term2*Kappa2/Gamma2) -> 0.7894597582 | J67: 1+iTk/g | P67: L | Q67: 0 | R67: L | S67: =AF67/AF$49-AF58 -> 12999.56147 | T67: L | U67: =AH67/AH$49-U58 -> -27115.55423 | V67: 19.74706062 | W67: 349.6925755 | X67: 6701.478021 | Y67: L | Z67: Change | AE67: L | AF67: =S9*$AM30 -> 65334.62133 | AG67: L | AH67: -130669.2427 | AI67: 65334.62133 | AJ67: 65334.62133 | AK67: -65334.62133 | AL67: L
E68: Term | I68: 0.5131581182
E69: Calculation | G69: =Term2-(1/I69-1/NPV_2)/G67 -> 2.491233943 | I69: =1/(1+E60)^Term2 -> 0.78945342 | J69: 1 | Z69: Domestic
I70: NPV | J70: (1 - i)T | Q70: =SUM(Q65:Q67) -> -14473.03079 | S70: =SUM(S65:S67) -> 12999.56147 | T70: D | U70: =SUM(U65:U67) -> -102612.4502 | V70: =SUM(V65:V67) -> 98.66745466 | W70: =SUM(W65:W67) -> 770.2414638 | X70: =SUM(X65:X66) -> 1911.425559 | Z70: < Demand
U71: 0 | V71: 1 | W71: 2 | X71: L
Z72: Domestic
Q73: =Q45+Q14 -> -14433.30918 | S73: =S45+S14 -> 14433.30918 | T73: S | U73: =U45+U14 -> -103279.8824 | V73: =V45+V14 -> 100.2260509 | W73: =W45+W14 -> 741.3904975 | X73: =X45+Z22+X14 -> 2067.774127 | Z73: < Supply | AD73: 0 | AF73: 0 | AH73: =-SUM(AI73:AK73) -> 0
U74: 0 | V74: 1 | W74: 2 | X74: L | AE74: Transfers | AG74: FI | AH74: 0 | AI74: 1 | AJ74: 2 | AK74: L
E75: Domestic | G75: T | AC75: 0 | AD75: 0 | AE75: 0 | AF75: 0 | AG75: 0 | AH75: =-SUM(AI75:AK75) -> 0 | AI75: 0 | AJ75: 0 | AK75: 0 | AL75: 0
E76: Investment | F76: > | G76: 2.491278693 | Z76: Demand | AC76: 1 | AD76: =-AH76 -> -2.288829694 | AE76: 1 | AF76: -1.272988639e-09 | AG76: 1 | AH76: =-SUM(AI76:AK76) -> 2.288829694 | AI76: 0 | AJ76: =(AF45-AF44)*(V0-Iota)*(E20+E21) -> -2.288829694 | AL76: 1 | AM76: Equity
E77: Term | G77: =ITerm -> 7 | T77: F | U77: ='Econ 0'!U20 -> 0.9987873977 | V77: ='Econ 0'!V20 -> 0.9990744282 | W77: ='Econ 0'!W20 -> 0.9990253592 | X77: ='Econ 0'!X20 -> 0.9990101685 | Z77: < Factors | AC77: 2 | AD77: =-AH77 -> 2.288829694 | AE77: 2 | AF77: 1.272988639e-09 | AG77: 2 | AH77: =-SUM(AI77:AK77) -> -2.288829694 | AI77: =-AJ76 -> 2.288829694 | AJ77: 0 | AL77: 2 | AM77: < Markets
U78: 0 | V78: 1 | W78: 2 | X78: L | AC78: L | AD78: 0 | AE78: L | AF78: 0 | AG78: L | AH78: =-SUM(AI78:AK78) -> 0 | AL78: L
R80: Trade Balance | Z80: imports ( - )
E81: =P0_2*'Econ 0'!M57 -> 0 | G81: =P0_2*'Econ 0'!O57 -> -4713.138557 | I81: =I25+DT*(U81-I$9*I25*3) -> -263.9413997 | J81: =J25+DT*(V81-J$9*J25*3) -> 5.48013404 | K81: =K25+DT*(W81-K$9*K25*3) -> -28.10608466 | L81: =L25+DT*(X81-L$9*L25*3) -> 52.75614224 | Q81: =AD73+AD81 -> 0 | S81: =AF73+AF81 -> 1524.668989 | U81: ='Econ 0'!U36 -> -791.8602246 | V81: ='Econ 0'!V36 -> 1.64992005 | W81: ='Econ 0'!W36 -> -28.10025757 | X81: ='Econ 0'!X36 -> 158.240558 | Z81: < eXports ( + ) | AD81: =IF(AH81>0,-AH81,0) -> 0 | AF81: =IF(AH81<0,-AH81,0) -> 1524.668989 | AH81: =P0_2*U81 -> -1524.668989 | AI81: =AI$49*V81 -> 1383.824642 | AJ81: =AJ$49*W81 -> -2864.464549 | AK81: =AK$49*X81 -> 3005.308896
H82: A | I82: 0 | J82: 1 | K82: 2 | L82: L | R82: r | T82: R | U82: 0 | V82: 1 | W82: 2 | X82: L | AE82: - NCF | AG82: PR | AH82: 0 | AI82: 1 | AJ82: 2 | AK82: L
D83: 0 | E83: =E27+DT*(Q83-Iota2*E19) -> 0 | F83: 0 | G83: =G27+DT*(S83-Nu_2*G19+G51-3*G27/Term2) -> 0 | H83: 0 | I83: =I27+DT*(U83-I$9*I27*3) -> 34426.33312 | J83: -333.9679585 | K83: -741.3302795 | L83: -2922 | M83: 0 | P83: 0 | Q83: =AD75+AD83 -> 0 | R83: 0 | S83: =AF75+AF83 -> 0 | T83: 0 | U83: =-U81-SUM(U84:U86) -> 103279.8824 | V83: =-Z20 -> -100.2260509 | W83: =-Z21 -> -741.3904975 | X83: =-AK6 -> -8766 | Y83: 0 | Z83: < Output ( - ) | AC83: 0 | AD83: =AH83-AH83 -> 0 | AE83: 0 | AF83: =AH83-AH83 -> 0 | AG83: 0 | AH83: =-SUM(AI83:AK83) -> 198908.3892 | AI83: =-AI81-SUM(AI84:AI86) -> -84061.81802 | AJ83: =-AJ81-SUM(AJ84:AJ86) -> -75575.34985 | AK83: =-AK81-SUM(AK84:AK86) -> -39271.22136 | AL83: 0
D84: 1 | E84: =E28+DT*(Q84-Iota2*E20) -> 76686.44436 | F84: 1 | G84: =G28+DT*(S84-Nu_2*G20+G52-3*G28/Term2) -> -1.308668271e-08 | H84: 1 | I84: -13230.20117 | J84: 165.2758857 | K84: 162.6610673 | L84: 320.4838278 | M84: 1 | P84: 1 | Q84: -7622.120385 | R84: 1 | S84: -1.272988639e-09 | T84: 1 | U84: =U$77*U65 -> -39690.94481 | V84: 49.59860089 | W84: 162.6742606 | X84: 961.4540486 | Y84: 1 | AC84: 1 | AD84: =AI83-AH84 -> -7619.831555 | AE84: 1 | AF84: 0 | AG84: 1 | AH84: =-SUM(AI84:AK84) -> -76441.98647 | AI84: =AI$49*V84 -> 41599.4497 | AJ84: 16582.57584 | AK84: 18259.96093 | AL84: 1 | AM84: Monetary
D85: 2 | E85: =E29+DT*(Q85-Iota2*E21) -> 68305.98057 | F85: 2 | G85: =G29+DT*(S85-Nu_2*G21+G53-3*G29/Term2) -> 1.308668271e-08 | H85: 2 | I85: -11904.68703 | J85: 97.46146562 | K85: 257.4444334 | L85: 316.0245686 | M85: 2 | P85: 2 | Q85: -6790.272839 | R85: 2 | S85: 1.272988639e-09 | T85: 2 | U85: -35714.40348 | V85: 29.24874665 | W85: 257.4647436 | X85: 948.0795208 | Y85: 2 | Z85: < Rates of | AC85: 2 | AD85: =AJ83-AH85 -> -6792.561669 | AE85: 2 | AF85: 0 | AG85: 2 | AH85: =-SUM(AI85:AK85) -> -68782.78818 | AI85: 24531.57434 | AJ85: 26245.2623 | AK85: 18005.95154 | AL85: 2 | AM85: < Transactions
D86: L | E86: =E30+DT*(Q86-Iota2*E22) -> 0 | F86: L | G86: =G30+DT*(S86-Nu_2*G22+G54-3*G30/Term2) -> -40251.151 | H86: L | I86: -9027.503523 | J86: 65.75047316 | K86: 349.3308636 | L86: 2232.735461 | M86: L | P86: L | Q86: 0 | R86: L | S86: 12887.72424 | T86: L | U86: =U$77*U67 -> -27082.67385 | V86: =V$77*V67 -> 19.72878329 | W86: =W$77*W67 -> 349.3517508 | X86: =-X81-SUM(X83:X85) -> 6698.225873 | Y86: L | Z86: Change | AC86: L | AD86: 0 | AE86: L | AF86: =AK83-AH86 -> 12887.72424 | AG86: L | AH86: =-SUM(AI86:AK86) -> -52158.94559 | AI86: =AI$49*V86 -> 16546.96934 | AJ86: =AJ$49*W86 -> 35611.97626 | AK86: 0 | AL86: L
Q87: Debt Service | S87: Passive Income | AD87: Cost of Sales | AF87: Consumption | AH87: - s
AD88: Minus Sales | AF88: Minus Wages
G89: =P0_2*'Econ 0'!O62 -> -4702.766326 | I89: =I33+DT*I$9*3*(I25-I33) -> -263.9382234 | J89: =J33+DT*J$9*3*(J25-J33) -> 5.457857486 | K89: =K33+DT*K$9*3*(K25-K33) -> -28.11176564 | L89: =L33+DT*L$9*3*(L25-L33) -> 52.76604917 | Q89: =GPE!A8 -> 0 | S89: =GPE!C8 -> -0.2886111448 | U89: =GPE!E8 -> 0 | V89: =GPE!F8 -> 0 | W89: =GPE!G8 -> 0 | X89: =GPE!H8 -> 0
H90: B | I90: 0 | J90: 1 | K90: 2 | L90: L | R90: r | T90: R | U90: 0 | V90: 1 | W90: 2 | X90: L
F91: 0 | G91: =G35+DT*3*(G27-G35)/Term2 -> 0 | H91: 0 | I91: =I35+DT*I$9*3*(I27-I35) -> 34426.02475 | J91: -333.8165016 | K91: -741.2660218 | L91: -2922 | M91: 0 | P91: 0 | Q91: =GPE!C10 -> 0 | R91: 0 | S91: =GPE!A10 -> 0 | T91: 0 | U91: =GPE!E10 -> 104588.8261 | V91: =GPE!F10 -> -100 | W91: =GPE!G10 -> -750 | X91: =GPE!H10 -> -8766 | Y91: 0
F92: 1 | G92: =G36+DT*3*(G28-G36)/Term2 -> -1.27343286e-08 | H92: 1 | I92: -13230.0784 | J92: 165.2059337 | K92: 162.646971 | L92: 320.4828504 | M92: 1 | P92: 1 | Q92: =GPE!C11 -> -8035.153798 | R92: 1 | S92: =GPE!A11 -> 0 | T92: 1 | U92: =GPE!E11 -> -40175.76899 | V92: =GPE!F11 -> 50 | W92: =GPE!G11 -> 150 | X92: =GPE!H11 -> 1000 | Y92: 1
F93: 2 | G93: =G37+DT*3*(G29-G37)/Term2 -> 1.27343286e-08 | H93: 2 | I93: -11904.564 | J93: 97.41757198 | K93: 257.4225631 | L93: 316.0224459 | M93: 2 | P93: 2 | Q93: =GPE!C12 -> -7344.632768 | R93: 2 | S93: =GPE!A12 -> 0 | T93: 2 | U93: =GPE!E12 -> -36723.16384 | V93: =GPE!F12 -> 30 | W93: =GPE!G12 -> 250 | X93: =GPE!H12 -> 1000 | Y93: 2
F94: L | G94: =G38+DT*3*(G30-G38)/Term2 -> -40241.3315 | H94: L | I94: -9027.444121 | J94: 65.73513846 | K94: 349.3082533 | L94: 2232.728655 | M94: L | P94: L | Q94: =GPE!A13 -> 0 | R94: L | S94: =GPE!C13 -> 15379.78657 | T94: L | U94: =GPE!E13 -> -27689.89328 | V94: =GPE!F13 -> 20 | W94: =GPE!G13 -> 350 | X94: =GPE!H13 -> 6766 | Y94: L
C95: System State
C96: @ time = t + d >
G97: =P0_2*'Econ 0'!O67 -> -4690.161552 | I97: =I41+DT*I$9*3*(I33-I41) -> -263.9353145 | J97: =J41+DT*J$9*3*(J33-J41) -> 5.430257944 | K97: =K41+DT*K$9*3*(K33-K41) -> -28.11730108 | L97: =L41+DT*L$9*3*(L33-L41) -> 52.77616261 | S97: u
H98: C | I98: 0 | J98: 1 | K98: 2 | L98: L | S98: (h/w-1)
F99: 0 | G99: =G43+DT*3*(G35-G43)/Term2 -> 0 | H99: 0 | I99: =I43+DT*I$9*3*(I35-I43) -> 34425.7098 | J99: -333.6282804 | K99: -741.198327 | L99: -2922 | M99: 0 | T99: 0
F100: 1 | G100: =G44+DT*3*(G36-G44)/Term2 -> -1.238137774e-08 | H100: 1 | I100: -13229.95299 | J100: 165.1140275 | K100: 162.632145 | L100: 320.4818417 | M100: 1 | S100: =AF56/(S7/S28-1) -> -7633.73008 | T100: 1
F101: 2 | G101: =G45+DT*3*(G37-G45)/Term2 -> 1.238137774e-08 | H101: 2 | I101: -11904.43809 | J101: 97.36675955 | K101: 257.3993482 | L101: 316.0202615 | M101: 2 | S101: =AF57/(S8/S29-1) -> -6799.597385 | T101: 2
F102: L | G102: =G46+DT*3*(G38-G46)/Term2 -> -40230.88926 | H102: L | I102: -9027.383404 | J102: 65.71723545 | K102: 349.2841348 | L102: 2232.721734 | M102: L | S102: =AF58/(S9/S30-1) -> 12925.61615 | T102: L
L105: =L49+DT*S105 -> -10141.58408 | S105: =(S102-S22)/AK49/(1-Z30) -> 0.1859328717 | T105: < | U105: ∂ZL/∂t
L106: -10219.74286

Sheet Series
B4: BUFFER ->
C5: =TicToc -> 30.00059128 | D5: ='Econ 1'!W45 -> 825.5883494 | E5: ='Econ 1'!W70 -> 798.2661146 | F5: ='Econ 2'!W45 -> 741.3904975 | G5: ='Econ 2'!W70 -> 770.2414638 | H5: =-Iota -> 0.1022387762 | I5: =-Iota1 -> 0.1048056328 | J5: =-Iota2 -> 0.09954540732 | K5: ='Econ 1'!S49 -> 0.4654787746 | L5: ='Econ 2'!S49 -> 0.5193653377 | M5: =-IState!J55 -> 10219.74286 | N5: =-Zl_1 -> 10354.07407 | O5: =-Zl_2 -> 10141.58594 | P5: =GPE!H13 -> 6766 | Q5: ='Econ 1'!X22 -> 6889.167501 | R5: ='Econ 2'!X22 -> 6698.185237 | S5: ='Econ 1'!AJ49 -> 113.7266322 | T5: ='Econ 1'!AJ43 -> 113.7212066 | U5: ='Econ 1'!AJ44 -> 113.7267315 | V5: ='Econ 1'!AJ46 -> 113.7234 | W5: =GPE!G$18 -> 107.7212806 | X5: ='Econ 1'!AD81+'Econ 1'!AF81 -> -1701.0011 | Y5: ='Econ 2'!AD81+'Econ 2'!AF81 -> 1524.668989 | Z5: ='Econ 1'!Q17+'Econ 1'!S17 -> -1699.422298 | AA5: ='Econ 2'!Q17+'Econ 2'!S17 -> 1510.025314
A7: BOX: | C7: year | D7: S1 | E7: D1 | F7: S2 | G7: D2 | H7: i Gbl | I7: i E1 | J7: i E2 | K7: 1/P01 | L7: 1/P02 | M7: -ZL | N7: -ZL1 | O7: -ZL2 | P7: -YL | Q7: -YL1 | R7: -YL2 | S7: P2 | T7: MC2 | U7: VMP1 | V7: VMPL | W7: P* | X7: r1 | Y7: r2 | Z7: e1 | AA7: e2
A8: 0 | C8: 0 | D8: 764.0286566 | E8: 846.4082834 | F8: 750 | G8: 754.4586324 | H8: 0.1045834294 | I8: 0.1094932694 | J8: 0.09967358933 | K8: 0.4566490731 | L8: 0.5015203347 | M8: 10219.74286 | N8: 10219.74286 | O8: 10219.74286 | P8: 6766 | Q8: 6766 | R8: 6766 | S8: 117.6119666 | T8: 115.7818666 | U8: 117.947552 | V8: 117.947552 | W8: 107.7212806 | X8: -14258.17147 | Y8: 13011.43944 | Z8: 0 | AA8: 0
A9: =1+A8 -> 1 | C9: 1.009999394 | D9: 812.6018291 | E9: 821.324864 | F9: 736.3384529 | G9: 770.8087567 | H9: 0.1007560269 | I9: 0.08086655745 | J9: 0.1225257283 | K9: 0.6377999694 | L9: 0.4097074781 | M9: 10219.74286 | N9: 10283.75741 | O9: 10191.16938 | P9: 6766 | Q9: 6772.478868 | R9: 6745.264914 | S9: 85.84054679 | T9: 85.58402042 | U9: 86.07261169 | V9: 90.55924669 | W9: 107.7212806 | X9: -2998.327688 | Y9: 4580.300734 | Z9: -442.9180828 | AA9: 1185.781715
A10: 2 | C10: 2.01999855 | D10: 818.6568309 | E10: 812.5028415 | F10: 736.7720086 | G10: 769.0552815 | H10: 0.1018475108 | I10: 0.09024397303 | J10: 0.1143927093 | K10: 0.5631779624 | L10: 0.4416245236 | M10: 10219.74286 | N10: 10334.82922 | O10: 10178.00002 | P10: 6766 | Q10: 6809.46005 | R10: 6714.333137 | S10: 95.86679703 | T10: 95.94729491 | U10: 95.8170991 | V10: 97.54015875 | W10: 107.7212806 | X10: -2594.460803 | Y10: 3269.846687 | Z10: -756.7883651 | AA10: 1309.416701
A11: 3 | C11: 3.029997587 | D11: 820.9154467 | E11: 808.0160935 | F11: 737.4236541 | G11: 769.086221 | H11: 0.1023165353 | I11: 0.09662017356 | J11: 0.1084073069 | K11: 0.5199419126 | L11: 0.4691188443 | M11: 10219.74286 | N11: 10351.22434 | O11: 10176.06958 | P11: 6766 | Q11: 6844.650407 | R11: 6701.647187 | S11: 103.0269688 | T11: 103.1098947 | U11: 102.9738508 | V11: 103.0239174 | W11: 107.7212806 | X11: -2445.100753 | Y11: 2692.102164 | Z11: -1038.797788 | AA11: 1344.795376
A12: 4 | C12: 4.039997578 | D12: 822.1789188 | E12: 805.0667183 | F12: 737.8934295 | G12: 769.6421362 | H12: 0.1023700656 | I12: 0.09961591306 | J12: 0.1052984584 | K12: 0.5009662908 | L12: 0.4854729093 | M12: 10219.74286 | N12: 10352.89228 | O12: 10172.50209 | P12: 6766 | Q12: 6864.687917 | R12: 6699.141482 | S12: 106.5661565 | T12: 106.6336694 | U12: 106.5195591 | V12: 106.1529186 | W12: 107.7212806 | X12: -2183.017931 | Y12: 2243.409463 | Z12: -1228.850891 | AA12: 1373.760767 | AE12: b2 | AF12: Z2 | AG12: b1-2-L | AH12: U1-2-L
A13: 5 | C13: 5.050020695 | D13: 822.9881474 | E13: 803.2682402 | F13: 738.4496838 | G13: 770.0317088 | H13: 0.1023409577 | I13: 0.1012614131 | J13: 0.1034848519 | K13: 0.490549367 | L13: 0.4958368218 | M13: 10219.74286 | N13: 10351.7232 | O13: 10167.51105 | P13: 6766 | Q13: 6873.741652 | R13: 6699.062334 | S13: 108.6158961 | T13: 108.6642034 | U13: 108.5740739 | V13: 108.3031313 | W13: 107.7212806 | X13: -1997.85295 | Y13: 1971.117006 | Z13: -1355.276094 | AA13: 1392.259421 | AE13: ='Econ 1'!AF29 -> 565696.0952 | AF13: ='Econ 1'!AM8 -> 5800 | AG13: ='Econ 1'!AF28+'Econ 1'!AF29+'Econ 1'!AF30 -> 1288400.356 | AH13: ='Econ 1'!AJ7+'Econ 1'!AJ8+'Econ 1'!AJ9 -> 10531.43283
A14: 6 | C14: 6.060043812 | D14: 823.5543505 | E14: 802.2056792 | F14: 738.9548147 | G14: 770.2230709 | H14: 0.1023198802 | I14: 0.1022830415 | J14: 0.1023588253 | K14: 0.4839309233 | L14: 0.5025920176 | M14: 10219.74286 | N14: 10351.38655 | O14: 10162.63384 | P14: 6766 | Q14: 6877.787109 | R14: 6699.153892 | S14: 109.9513085 | T14: 109.9828497 | U14: 109.9151418 | V14: 109.7937236 | W14: 107.7212806 | X14: -1898.619739 | Y14: 1824.631721 | Z14: -1442.858633 | AA14: 1406.135821 | AE14: INITIAL | AF14: INITIAL
A15: 7 | C15: 7.070066929 | D15: 823.9667344 | E15: 801.5323528 | F15: 739.319713 | G15: 770.3023688 | H15: 0.1023149235 | I15: 0.1029686257 | J15: 0.1016249198 | K15: 0.4793805342 | L15: 0.5071129982 | M15: 10219.74286 | N15: 10351.89769 | O15: 10158.50523 | P15: 6766 | Q15: 6880.151914 | R15: 6699.031809 | S15: 110.8856255 | T15: 110.9040109 | U15: 110.856482 | V15: 110.8157388 | W15: 107.7212806 | X15: -1847.927343 | Y15: 1744.495338 | Z15: -1506.772163 | AA15: 1418.641 | AD15: Q1 | AE15: s | AF15: d | AG15: S | AH15: D
A16: 8 | C16: 8.080089569 | D16: 824.2790561 | E16: 801.0423742 | F16: 739.555256 | G16: 770.333902 | H16: 0.10231702 | I16: 0.1034602861 | J16: 0.1011115812 | K16: 0.4760703982 | L16: 0.5102987372 | M16: 10219.74286 | N16: 10352.64147 | O16: 10155.23456 | P16: 6766 | Q16: 6881.988301 | R16: 6698.712748 | S16: 111.5760836 | T16: 111.5844056 | U16: 111.554182 | V16: 111.5416963 | W16: 107.7212806 | X16: -1816.339761 | Y16: 1692.868293 | Z16: -1555.309928 | AA16: 1430.06439 | AD16: 700 | AE16: 106.6426664 | AF16: 108.2008333 | AG16: =$AE$13/($AF$13-AD16) -> 110.920803 | AH16: =$AG$13/($AH$13+AD16) -> 114.7138015
A17: 9 | C17: 9.090112686 | D17: 824.5232951 | E17: 800.6467398 | F17: 739.7073333 | G17: 770.3464535 | H17: 0.1023201767 | I17: 0.1038331864 | J17: 0.1007261764 | K17: 0.4735523103 | L17: 0.5126703312 | M17: 10219.74286 | N17: 10353.2862 | O17: 10152.74115 | P17: 6766 | Q17: 6883.52352 | R17: 6698.30444 | S17: 112.1081269 | T17: 112.108864 | U17: 112.0925776 | V17: 112.0879393 | W17: 107.7212806 | X17: -1791.268915 | Y17: 1653.479393 | Z17: -1592.822536 | AA17: 1439.962806 | AD17: =10+AD16 -> 710 | AE17: 106.8566577 | AF17: 108.1045815 | AG17: 111.138722 | AH17: 114.6117559
A18: 10 | C18: 10.1001358 | D18: 824.7172661 | E18: 800.3154573 | F18: 739.8151812 | G18: 770.3495671 | H18: 0.1023224472 | I18: 0.1041237909 | J18: 0.1004258777 | K18: 0.4715917256 | L18: 0.5144870335 | M18: 10219.74286 | N18: 10353.76407 | O18: 10150.8767 | P18: 6766 | Q18: 6884.769857 | R18: 6697.913631 | S18: 112.5257523 | T18: 112.5209272 | U18: 112.5152111 | V18: 112.5137312 | W18: 107.7212806 | X18: -1769.77622 | Y18: 1621.5074 | Z18: -1621.737556 | AA18: 1448.242981 | AD18: =10+AD17 -> 720 | AE18: 107.0715096 | AF18: 108.0085008 | AG18: 111.3574991 | AH18: 114.5098918
A19: 11 | C19: 11.11015892 | D19: 824.8717803 | E19: 800.037356 | F19: 739.9027183 | G19: 770.3463156 | H19: 0.1023234819 | I19: 0.1043495092 | J19: 0.1001914356 | K19: 0.4700632627 | L19: 0.5158779932 | M19: 10219.74286 | N19: 10354.10424 | O19: 10149.47963 | P19: 6766 | Q19: 6885.745722 | R19: 6697.60288 | S19: 112.8522654 | T19: 112.843539 | U19: 112.845424 | V19: 112.846288 | W19: 107.7212806 | X19: -1751.866027 | Y19: 1595.869343 | Z19: -1643.702679 | AA19: 1455.16159 | AD19: 730 | AE19: 107.2872272 | AF19: 107.9125907 | AG19: 111.5771391 | AH19: 114.4082086
A20: 12 | C20: 12.12018204 | D20: 824.9947866 | E20: 799.8041748 | F20: 739.982643 | G20: 770.3385206 | H20: 0.1023232348 | I20: 0.1045211337 | J20: 0.1000112814 | K20: 0.4688849799 | L20: 0.5169261793 | M20: 10219.74286 | N20: 10354.34421 | O20: 10148.40907 | P20: 6766 | Q20: 6886.49494 | R20: 6697.388681 | S20: 113.1033854 | T20: 113.0920937 | U20: 113.0991699 | V20: 113.1015614 | W20: 107.7212806 | X20: -1737.636114 | Y20: 1575.953229 | Z20: -1660.075501 | AA20: 1461.062149 | AD20: 740 | AE20: 107.5038158 | AF20: 107.8168508 | AG20: 111.7976473 | AH20: 114.3067058
A21: 13 | C21: 13.13020515 | D21: 825.0928571 | E21: 799.6076408 | F21: 740.0613388 | G21: 770.3278995 | H21: 0.1023216993 | I21: 0.1046479851 | J21: 0.09987552959 | K21: 0.4679898674 | L21: 0.517700708 | M21: 10219.74286 | N21: 10354.50903 | O21: 10147.55955 | P21: 6766 | Q21: 6887.066566 | R21: 6697.260453 | S21: 113.2926813 | T21: 113.2798628 | U21: 113.2902756 | V21: 113.2931379 | W21: 107.7212806 | X21: -1726.753024 | Y21: 1560.912727 | Z21: -1672.049809 | AA21: 1466.223606 | AD21: 750 | AE21: 107.7212806 | AF21: 107.7212806 | AG21: 112.0190288 | AH21: 114.2053829
A22: 14 | C22: 14.14022827 | D22: 825.1714773 | E22: 799.4402116 | F22: 740.1417998 | G22: 770.3159767 | H22: 0.1023189432 | I22: 0.1047388673 | J22: 0.09977502871 | K22: 0.4673189676 | L22: 0.5182625126 | M22: 10219.74286 | N22: 10354.61466 | O22: 10146.85963 | P22: 6766 | Q22: 6887.502754 | R22: 6697.198846 | S22: 113.4325932 | T22: 113.4190245 | U22: 113.4313985 | V22: 113.433857 | W22: 107.7212806 | X22: -1718.647975 | Y22: 1549.789642 | Z22: -1680.652345 | AA22: 1470.833523 | AD22: 760 | AE22: 107.939627 | AF22: 107.6258797 | AG22: 112.2412887 | AH22: 114.1042395
A23: 15 | C23: 15.15025139 | D23: 825.2350884 | E23: 799.2957459 | F23: 740.2251037 | G23: 770.3039133 | H23: 0.1023151252 | I23: 0.1048017041 | J23: 0.09970176251 | K23: 0.4668216815 | L23: 0.5186629843 | M23: 10219.74286 | N23: 10354.67317 | O23: 10146.26338 | P23: 6766 | Q23: 6887.836437 | R23: 6697.185571 | S23: 113.5340751 | T23: 113.5203156 | U23: 113.533661 | V23: 113.5352064 | W23: 107.7212806 | X23: -1712.732749 | Y23: 1541.698113 | Z23: -1686.728262 | AA23: 1475.011234 | AD23: 770 | AE23: 108.1588604 | AF23: 107.5306476 | AG23: 112.4644325 | AH23: 114.0032751
A24: 16 | C24: 16.16027451 | D24: 825.287181 | E24: 799.1695397 | F24: 740.3112104 | G24: 770.2924817 | H24: 0.102310462 | I24: 0.1048431937 | J24: 0.09964913447 | K24: 0.4664564426 | L24: 0.5189432824 | M24: 10219.74286 | N24: 10354.69501 | O24: 10145.74158 | P24: 6766 | Q24: 6888.092803 | R24: 6697.20637 | S24: 113.6062757 | T24: 113.5927125 | U24: 113.6063389 | V24: 113.6067808 | W24: 107.7212806 | X24: -1708.497219 | Y24: 1535.903056 | Z24: -1690.947098 | AA24: 1478.834372 | AD24: 780 | AE24: 108.3789861 | AF24: 107.435584 | AG24: 112.6884652 | AH24: 113.9024892
A25: 17 | C25: 17.17029762 | D25: 825.3304474 | E25: 799.0580498 | F25: 740.3994674 | G25: 770.2821333 | H25: 0.1023051837 | I25: 0.1048687507 | J25: 0.09961193092 | K25: 0.4661902543 | L25: 0.5191352594 | M25: 10219.74286 | N25: 10354.68932 | O25: 10145.27527 | P25: 6766 | Q25: 6888.291161 | R25: 6697.250806 | S25: 113.6565407 | T25: 113.643429 | U25: 113.6568725 | V25: 113.6562245 | W25: 107.7212806 | X25: -1705.528562 | Y25: 1531.82378 | Z25: -1693.824661 | AA25: 1482.355968 | AD25: 790 | AE25: 108.6000097 | AF25: 107.3406882 | AG25: 112.9133923 | AH25: 113.8018814
A26: 18 | C26: 18.18032074 | D26: 825.366943 | E26: 798.9585891 | F26: 740.4889476 | G26: 770.2730864 | H26: 0.1022995031 | I26: 0.1048826335 | J26: 0.09958611936 | K26: 0.4659974966 | L26: 0.5192631067 | M26: 10219.74286 | N26: 10354.66377 | O26: 10144.85182 | P26: 6766 | Q26: 6888.446319 | R26: 6697.311287 | S26: 113.6906189 | T26: 113.6781162 | U26: 113.6910805 | V26: 113.6894629 | W26: 107.7212806 | X26: -1703.501376 | Y26: 1529.010668 | Z26: -1695.750314 | AA26: 1485.613754 | AD26: 800 | AE26: 108.8219366 | AF26: 107.24596 | AG26: 113.139219 | AH26: 113.7014511
A27: 19 | C27: 19.19034386 | D27: 825.3982261 | E27: 798.869093 | F27: 740.5786639 | G27: 770.265403 | H27: 0.1022936005 | I27: 0.1048881327 | J27: 0.09956861866 | K27: 0.4658585663 | L27: 0.5193449958 | M27: 10219.74286 | N27: 10354.62451 | O27: 10144.46267 | P27: 6766 | Q27: 6888.569543 | R27: 6697.382229 | S27: 113.7129328 | T27: 113.7011255 | U27: 113.7134355 | V27: 113.7110139 | W27: 107.7212806 | X27: -1702.162517 | Y27: 1527.119119 | Z27: -1697.013081 | AA27: 1488.635359 | AD27: 810 | AE27: 109.0447723 | AF27: 107.1513987 | AG27: 113.3659509 | AH27: 113.6011979
A28: 20 | C28: 20.20036697 | D28: 825.425471 | E28: 798.7879583 | F28: 740.6676921 | G28: 770.2590453 | H28: 0.1022876214 | I28: 0.1048877562 | J28: 0.09955709764 | K28: 0.4657586396 | L28: 0.5193944478 | M28: 10219.74286 | N28: 10354.57632 | O28: 10144.10188 | P28: 6766 | Q28: 6888.6693 | R28: 6697.459507 | S28: 113.7268368 | T28: 113.7157617 | U28: 113.7273274 | V28: 113.7242782 | W28: 107.7212806 | X28: -1701.317534 | Y28: 1525.887621 | Z28: -1697.824085 | AA28: 1491.441612 | AD28: 820 | AE28: 109.2685226 | AF28: 107.0570041 | AG28: 113.5935934 | AH28: 113.5011214
A29: 21 | C29: 21.21039009 | D29: 825.4495568 | E29: 798.7139313 | F29: 740.7552304 | G29: 770.2539164 | H29: 0.1022816775 | I29: 0.1048833881 | J29: 0.0995498115 | K29: 0.4656866365 | L29: 0.5194214152 | M29: 10219.74286 | N29: 10354.5228 | O29: 10143.76536 | P29: 6766 | Q29: 6888.751861 | R29: 6697.540089 | S29: 113.7348411 | T29: 113.7245012 | U29: 113.7352905 | V29: 113.7317825 | W29: 107.7212806 | X29: -1700.819319 | Y29: 1525.120164 | Z29: -1698.334963 | AA29: 1494.048852 | AD29: 830 | AE29: 109.493193 | AF29: 106.9627757 | AG29: 113.822152 | AH29: 113.4012211
A30: 22 | C30: 22.22041321 | D30: 825.4711373 | E30: 798.6460263 | F30: 740.8406209 | G30: 770.2498875 | H30: 0.1022758525 | I30: 0.1048764229 | J30: 0.09954547062 | K30: 0.465634378 | L30: 0.5194331298 | M30: 10219.74286 | N30: 10354.46659 | O30: 10143.45024 | P30: 6766 | Q30: 6888.821809 | R30: 6697.621786 | S30: 113.7387974 | T30: 113.7291736 | U30: 113.7391926 | V30: 113.7353776 | W30: 107.7212806 | X30: -1700.558506 | Y30: 1524.671988 | Z30: -1698.652622 | AA30: 1496.470552 | AD30: 840 | AE30: 109.7187892 | AF30: 106.868713 | AG30: 114.0516321 | AH30: 113.3014964
A31: 23 | C31: 23.23043633 | D31: 825.4906963 | E31: 798.5834635 | F31: 740.9233492 | G31: 770.246817 | H31: 0.1022702059 | I31: 0.104867875 | J31: 0.09954313519 | K31: 0.4655959072 | L31: 0.5194347691 | M31: 10219.74286 | N31: 10354.40963 | O31: 10143.15444 | P31: 6766 | Q31: 6888.88245 | R31: 6697.703045 | S31: 113.7400508 | T31: 113.7311107 | U31: 113.7403887 | V31: 113.7363972 | W31: 107.7212806 | X31: -1700.45531 | Y31: 1524.43794 | Z31: -1698.850867 | AA31: 1498.71841 | AD31: 850 | AE31: 109.9453169 | AF31: 106.7748156 | AG31: 114.2820394 | AH31: 113.201947
A32: 24 | C32: 24.24045944 | D32: 825.50859 | E32: 798.5256203 | F32: 741.0030326 | G32: 770.2445631 | H32: 0.1022647786 | I32: 0.1048584686 | J32: 0.0995421309 | K32: 0.4655669473 | L32: 0.5194299781 | M32: 10219.74286 | N32: 10354.35326 | O32: 10142.87647 | P32: 6766 | Q32: 6888.936145 | R32: 6697.782798 | S32: 113.7395624 | T32: 113.7312662 | U32: 113.7398459 | V32: 113.7357858 | W32: 107.7212806 | X32: -1700.45269 | Y32: 1524.343012 | Z32: -1698.979415 | AA32: 1500.803048 | AD32: 860 | AE32: 110.1727819 | AF32: 106.681083 | AG32: 114.5133796 | AH32: 113.1025724
A33: 25 | C33: 25.25048256 | D33: 825.5250808 | E33: 798.4719947 | F33: 741.0794038 | G33: 770.2429913 | H33: 0.1022595963 | I33: 0.1048487092 | J33: 0.09954198208 | K33: 0.4655444755 | L33: 0.5194212755 | M33: 10219.74286 | N33: 10354.29841 | O33: 10142.61514 | P33: 6766 | Q33: 6888.984556 | R33: 6697.86033 | S33: 113.7380062 | T33: 113.7303108 | U33: 113.7382412 | V33: 113.7341987 | W33: 107.7212806 | X33: -1700.510762 | Y33: 1524.334764 | Z33: -1699.070771 | AA33: 1502.734419 | AD33: 870 | AE33: 110.4011901 | AF33: 106.5875149 | AG33: 114.7456583 | AH33: 113.003372
A34: 26 | C34: 26.26050568 | D34: 825.5403626 | E34: 798.422176 | F34: 741.1522932 | G34: 770.241979 | H34: 0.1022546735 | I34: 0.10483894 | J34: 0.09954235952 | K34: 0.4655263901 | L34: 0.5194103642 | M34: 10219.74286 | N34: 10354.24571 | O34: 10142.36953 | P34: 6766 | Q34: 6889.028849 | R34: 6697.935186 | S34: 113.7358449 | T34: 113.7287069 | U34: 113.7360386 | V34: 113.7320801 | W34: 107.7212806 | X34: -1700.602347 | Y34: 1524.377373 | Z34: -1699.145383 | AA34: 1504.522033 | AD34: 880 | AE34: 110.6305474 | AF34: 106.4941107 | AG34: 114.9788811 | AH34: 112.9043456
A35: 27 | C35: 27.27052879 | D35: 825.5545799 | E35: 798.3758232 | F35: 741.221611 | G35: 770.2414175 | H35: 0.1022500161 | I35: 0.1048293863 | J35: 0.09954304036 | K35: 0.4655112571 | L35: 0.5193983659 | M35: 10219.74286 | N35: 10354.19552 | O35: 10142.1388 | P35: 6766 | Q35: 6889.069828 | R35: 6698.007092 | S35: 113.7333887 | T35: 113.7267659 | U35: 113.7335484 | V35: 113.7297226 | W35: 107.7212806 | X35: -1700.709488 | Y35: 1524.447037 | Z35: -1699.215438 | AA35: 1506.175057 | AD35: 890 | AE35: 110.8608596 | AF35: 106.4008702 | AG35: 115.213054 | AH35: 112.8054925
A36: 28 | C36: 28.28055191 | D36: 825.5678423 | E36: 798.3326482 | F36: 741.2873326 | G36: 770.2412131 | H36: 0.1022456237 | I36: 0.1048201882 | J36: 0.09954387767 | K36: 0.4654981178 | L36: 0.5193859958 | M36: 10219.74286 | N36: 10354.14804 | O36: 10141.92223 | P36: 6766 | Q36: 6889.108051 | R36: 6698.075905 | S36: 113.7308386 | T36: 113.7246912 | U36: 113.730971 | V36: 113.7273121 | W36: 107.7212806 | X36: -1700.820794 | Y36: 1524.528483 | Z36: -1699.287612 | AA36: 1507.702346 | AD36: 900 | AE36: 111.0921327 | AF36: 106.3077927 | AG36: 115.4481827 | AH36: 112.7068124
A37: 29 | C37: 29.29057503 | D37: 825.5802347 | E37: 798.2924032 | F37: 741.349484 | G37: 770.241286 | H37: 0.1022414915 | I37: 0.1048114268 | J37: 0.09954477778 | K37: 0.4654863464 | L37: 0.5193736906 | M37: 10219.74286 | N37: 10354.10338 | O37: 10141.71914 | P37: 6766 | Q37: 6889.143902 | R37: 6698.141571 | S37: 113.7283196 | T37: 113.7226105 | U37: 113.7284308 | V37: 113.7249607 | W37: 107.7212806 | X37: -1700.929433 | Y37: 1524.61236 | Z37: -1699.365026 | AA37: 1509.112442
A38: 30 | C38: 30.00059128 | D38: 825.5883494 | E38: 798.2661146 | F38: 741.3904975 | G38: 770.2414638 | H38: 0.1022387762 | I38: 0.1048056328 | J38: 0.09954540732 | K38: 0.4654787746 | L38: 0.5193653377 | M38: 10219.74286 | N38: 10354.07407 | O38: 10141.58594 | P38: 6766 | Q38: 6889.167501 | R38: 6698.185237 | S38: 113.7266322 | T38: 113.7212066 | U38: 113.7267315 | V38: 113.7234 | W38: 107.7212806 | X38: -1701.0011 | Y38: 1524.668989 | Z38: -1699.422298 | AA38: 1510.025314

Sheet GPE
G3: General Equilibrium Prices, $/physical unit
K5: Experimenters are invited to change
K6: any data set in red type that
K7: appears within the marquee.
C8: -0.2886111448 | E8: =E24/E$18 -> 0 | F8: 0 | G8: 0 | H8: 0
C9: r | D9: R | E9: 0 | F9: 1 | G9: 2 | H9: L
C10: =-E24 -> 0 | D10: 0 | E10: =E26/E$18 -> 104588.8261 | F10: =-F8-SUM(F11:F13) -> -100 | G10: =-G8-SUM(G11:G13) -> -750 | H10: =-H8-SUM(H11:H13) -> -8766
C11: =F26-E27 -> -8035.153798 | D11: 1 | E11: =E27/E$18 -> -40175.76899 | F11: 50 | G11: 150 | H11: 1000 | N11: =L18*F11+F10 -> -45 | O11: =L18*G11 -> 165 | Q11: =-L18*H11*H18 -> -22000
C12: =G26-E28 -> -7344.632768 | D12: 2 | E12: =E28/E$18 -> -36723.16384 | F12: 30 | G12: 250 | H12: 1000 | N12: =L18*F12 -> 33 | O12: =L18*G12+G10 -> -475 | Q12: =-L18*H12*H18 -> -22000
C13: =H26-E29 -> 15379.78657 | D13: L | E13: =E29/E$18 -> -27689.89328 | F13: 20 | G13: 350 | H13: 6766 | N13: =F13+L15*(F11+F12) -> 12 | O13: =G13+L15*(G11+G12) -> 310 | Q13: =H18*(-H10-H13-L15*(H11+H12)) -> 44000
L14: i
L15: =-C18 -> -0.1 | N15: =N11*N11+N12*N12+N13*N13 -> 3258 | O15: =N11*O11+N12*O12+N13*O13 -> -19380 | Q15: =N11*Q11+N12*Q12+N13*Q13 -> 792000
N16: =O15 -> -19380 | O16: =O11*O11+O12*O12+O13*O13 -> 348950 | Q16: =O11*Q11+O12*Q12+O13*Q13 -> 20460000
C17: - i | E17: 0 | F17: 1 | G17: 2 | H17: L | L17: 1 - i
C18: 0.1 | D18: P | E18: 2 | F18: =N18/Q18 -> 883.8669178 | G18: =O18/Q18 -> 107.7212806 | H18: 20 | L18: =1-L15 -> 1.1 | N18: =Q15*O16-Q16*O15 -> 672883200000 | O18: =N15*Q16-N16*Q15 -> 8.200764e+10 | Q18: =N15*O16-N16*O15 -> 761294700
C19: Interest Rate | E19: Price of | H19: Wage
E20: Value, $/G | H20: $/hour
E24: =-SUM(F24:H24) -> 0 | F24: =F$18*F8 -> 0 | G24: =G$18*G8 -> 0 | H24: =H$18*H8 -> 0
D25: PR | E25: 0 | F25: 1 | G25: 2 | H25: L
D26: 0 | E26: =-SUM(F26:H26) -> 209177.6522 | F26: =-F24-SUM(F27:F29) -> -88386.69178 | G26: =-G24-SUM(G27:G29) -> -80790.96045 | H26: =-H24-SUM(H27:H29) -> -40000
B27: % return > | C27: =C11/E27 -> 0.1 | D27: 1 | E27: =-SUM(F27:H27) -> -80351.53798 | F27: =F$18*F11 -> 44193.34589 | G27: 16158.19209 | H27: 20000
B28: on asset | C28: =C12/E28 -> 0.1 | D28: 2 | E28: =-SUM(F28:H28) -> -73446.32768 | F28: 26516.00753 | G28: 26930.32015 | H28: 20000
B29: turnover | D29: L | E29: =-SUM(F29:H29) -> -55379.78657 | F29: =F$18*F13 -> 17677.33836 | G29: =G$18*G13 -> 37702.44821 | H29: 0

Sheet Utility
G3: Sectors' Production and Utility Tradeoffs, physical units/year
L5: Sector 1:
N7: p | O7: pq
L8: x > | M8: =-F12 -> 100 | N8: =F19 -> 883.8669178 | O8: =M8*N8 -> 88386.69178 | P8: =O8-O9-O10-O11 -> 8035.153798
L9: Q1 > | M9: =F13 -> 50 | N9: =F19 -> 883.8669178 | O9: =M9*N9 -> 44193.34589 | P9: =(O8)*(-O9)+(O8-O9)*(-O10-O11)+(-O10)*(-O11) -> -5180891290 | Q9: =P9/P8/3 -> -214926.0371 | R9: a
F10: =GPE!F8 -> 0 | G10: =GPE!G8 -> 0 | H10: =GPE!H8 -> 0 | L10: Q2 > | M10: =G13 -> 150 | N10: =G19 -> 107.7212806 | O10: =M10*N10 -> 16158.19209 | P10: =(O8-O9)*(-O10)*(-O11)+(-O10-O11)*(O8)*(-O9) -> 1.555193372e+14 | Q10: =P10/P8/3 -> 6451622506 | R10: b
D11: Q | E11: 0 | F11: 1 | G11: 2 | H11: L | L11: QL > | M11: =H13 -> 1000 | N11: =H19 -> 20 | O11: =M11*N11 -> 20000 | P11: =(O8)*(-O9)*(-O10)*(-O11) -> -1.262311459e+18 | Q11: =P11/P8/2 -> -7.854930292e+13 | R11: c
D12: 0 | E12: =GPE!E10 -> 104588.8261 | F12: =GPE!F10 -> -100 | G12: =GPE!G10 -> -750 | H12: =GPE!H10 -> -8766 | N12: ^ P
D13: 1 | F13: =GPE!F11 -> 50 | G13: =GPE!G11 -> 150 | H13: =GPE!H11 -> 1000 | O13: pu | P13: z
D14: 2 | F14: =GPE!F12 -> 30 | G14: =GPE!G12 -> 250 | H14: =GPE!H12 -> 1000 | L14: Z < | M14: =O14/N8 -> 794.2843664 | O14: =P$14+O8 -> 702041.6748 | P14: =-Q9+Q16+Q17 -> 613654.983 | Q14: =-Q9*Q9+Q10 -> -3.974157891e+10 | R14: B | S14: =Q14^3+Q15^2 -> 6.560854017e+28
D15: L | F15: =GPE!F13 -> 20 | G15: =GPE!G13 -> 350 | H15: =GPE!H13 -> 6766 | L15: U1 < | M15: =O15/N9 -> 644.2843664 | O15: =P$14-O9 -> 569461.6371 | Q15: =Q9^3-3*Q9*Q10/2+Q11 -> -7926738537434964 | R15: C | S15: =SQRT(ABS(S14)) -> 2.561416408e+14
L16: U2 < | M16: =O16/N10 -> 5546.692237 | O16: =P$14-O10 -> 597496.7909 | Q16: =IF(S16>0,S16^(1/3),-((-S16)^(1/3))) -> 201512.5339 | R16: S1 | S16: =(-Q15+S15) -> 8182880178270446
L17: UL < | M17: =O17/N11 -> 29682.74915 | O17: =P$14-O11 -> 593654.983 | Q17: =IF(S17>0,S17^(1/3),-((-S17)^(1/3))) -> 197216.4121 | R17: S2 | S17: =(-Q15-S15) -> 7670596896599482
E18: 0 | F18: 1 | G18: 2 | H18: L
D19: P | E19: =GPE!E18 -> 2 | F19: =GPE!F18 -> 883.8669178 | G19: =GPE!G18 -> 107.7212806 | H19: =GPE!H18 -> 20
L22: Sector 2:
N23: p | O23: pq
L24: x > | M24: =-G12 -> 750 | N24: =G19 -> 107.7212806 | O24: =M24*N24 -> 80790.96045 | P24: =O24-O25-O26-O27 -> 7344.632768
L25: Q1 > | M25: =F14 -> 30 | N25: =F19 -> 883.8669178 | O25: =M25*N25 -> 26516.00753 | P25: =(O24)*(-O25)+(O24-O25)*(-O26-O27)+(-O26)*(-O27) -> -4150788230 | Q25: =P25/P24/3 -> -188381.9273 | R25: a
L26: Q2 > | M26: =G14 -> 250 | N26: =G19 -> 107.7212806 | O26: =M26*N26 -> 26930.32015 | P26: =(O24-O25)*(-O26)*(-O27)+(-O26-O27)*(O24)*(-O25) -> 1.297694899e+14 | Q26: =P26/P24/3 -> 5889538388 | R26: b
C27: z | D27: U | E27: 0 | F27: 1 | G27: 2 | H27: L | L27: QL > | M27: =H14 -> 1000 | N27: =H19 -> 20 | O27: =M27*N27 -> 20000 | P27: =(O24)*(-O25)*(-O26)*(-O27) -> -1.153831568e+18 | Q27: =P27/P24/2 -> -7.854930292e+13 | R27: c
C28: 0 | D28: 0 | E28: =-E12+((O8-O14)+(O24-O30)-(O41-O45))/E19 -> -643139.1648 | F28: =M14 -> 794.2843664 | G28: =M30 -> 5693.503722 | H28: =-H12 -> 8766 | N28: ^ P
C29: =P14 -> 613654.983 | D29: 1 | F29: =M15 -> 644.2843664 | G29: =M16 -> 5546.692237 | H29: =M17 -> 29682.74915 | O29: pu | P29: z
C30: =P30 -> 532520.5516 | D30: 2 | F30: =M31 -> 572.4895161 | G30: =M32 -> 4693.503722 | H30: =M33 -> 25626.02758 | L30: Z < | M30: =O30/N24 -> 5693.503722 | O30: =$P$30+O24 -> 613311.5121 | P30: =-Q25+Q32+Q33 -> 532520.5516 | Q30: =-Q25*Q25+Q26 -> -2.959821216e+10 | R30: B | S30: =Q30^3+Q31^2 -> 7.604104008e+28
C31: =P45 -> 69074.85729 | D31: L | F31: =M46 -> 58.15074408 | G31: =M47 -> 291.2368745 | H31: =M45 -> -10219.74286 | L31: U1 < | M31: =O31/N25 -> 572.4895161 | O31: =$P$30-O25 -> 506004.5441 | Q31: =Q25^3-3*Q25*Q26/2+Q27 -> -5099576259480375 | R31: C | S31: =SQRT(ABS(S30)) -> 2.75755399e+14
L32: U2 < | M32: =O32/N26 -> 4693.503722 | O32: =$P$30-O26 -> 505590.2315 | Q32: =IF(S32>0,S32^(1/3),-((-S32)^(1/3))) -> 175173.5058 | R32: S1 | S32: =(-Q31+S31) -> 5375331658481722
L33: UL < | M33: =O33/N27 -> 25626.02758 | O33: =$P$30-O27 -> 512520.5516 | Q33: =IF(S33>0,S33^(1/3),-((-S33)^(1/3))) -> 168965.1184 | R33: S2 | S33: =(-Q31-S31) -> 4823820860479028
L38: Sector L:
M40: Leisure | N40: p | O40: pq
L41: x > | M41: =-H15 -> -6766 | N41: =-H19 -> -20 | O41: =M41*N41 -> 135320 | Q41: =O41-O42-O43 -> 79940.21343 | R41: a
L42: Q1 > | M42: =F15 -> 20 | N42: =F19 -> 883.8669178 | O42: =M42*N42 -> 17677.33836 | Q42: =-O41*O42-O41*O43+O42*O43 -> -6827513784 | R42: b
L43: Q2 > | M43: =G15 -> 350 | N43: =G19 -> 107.7212806 | O43: =M43*N43 -> 37702.44821 | Q43: =O41*O42*O43 -> 9.018792933e+13 | R43: c
N44: ^ P | O44: pu | P44: z
L45: Z < | M45: =O45/N41 -> -10219.74286 | O45: =P$45+O41 -> 204394.8573 | P45: =(-Q42+SQRT(Q42^2-4*Q41*Q43))/(2*Q41) -> 69074.85729
L46: U1 < | M46: =O46/N42 -> 58.15074408 | O46: =P$45-O42 -> 51397.51893
L47: U2 < | M47: =O47/N43 -> 291.2368745 | O47: =P$45-O43 -> 31372.40908

Sheet IState
G4: Commodities' Turnover Fractions, dimensionless/year
C9: =(1-C13)^-E9 -> 0.5131581182 | E9: 7 | G9: < Investment Term
C10: NPV
E11: n =
C12: i | E12: (1-1/NPV)/T | G12: V0
C13: =GPE!L15 -> -0.1 | E13: =(1-1/C9)/E9 -> -0.1355310143 | G13: 1 | H13: 0.1 | I13: =1/3 -> 0.3333333333 | J13: =1 -> 1 | K13: < V
G14: 0 | H14: 1 | I14: 2 | J14: L
G21: =GPE!E8 -> 0 | H21: =GPE!F8 -> 0 | I21: =GPE!G8 -> 0 | J21: =GPE!H8 -> 0
C22: e - | E22: e + | F22: E | G22: 0 | H22: 1 | I22: 2 | J22: L
B23: 0 | F23: 0 | G23: =GPE!E10 -> 104588.8261 | H23: =GPE!F10 -> -100 | I23: =GPE!G10 -> -750 | J23: =GPE!H10 -> -8766
B24: 1 | C24: =GPE!C11 -> -8035.153798 | F24: 1 | G24: =GPE!E11 -> -40175.76899 | H24: =GPE!F11 -> 50 | I24: =GPE!G11 -> 150 | J24: =GPE!H11 -> 1000
B25: 2 | C25: =GPE!C12 -> -7344.632768 | F25: 2 | G25: =GPE!E12 -> -36723.16384 | H25: =GPE!F12 -> 30 | I25: =GPE!G12 -> 250 | J25: =GPE!H12 -> 1000
B26: L | C26: =GPE!A13 -> 0 | E26: =GPE!C13 -> 15379.78657 | F26: L | G26: =GPE!E13 -> -27689.89328 | H26: =GPE!F13 -> 20 | I26: =GPE!G13 -> 350 | J26: =GPE!H13 -> 6766
C31: 0 | E31: 0 | G31: =G21/3 -> 0 | H31: =H21/H$13/3 -> 0 | I31: =I21/I$13/3 -> 0 | J31: =J21/J$13/3 -> 0
F32: A | G32: 0 | H32: 1 | I32: 2 | J32: L
B33: 0 | C33: 0 | E33: 0 | F33: 0 | G33: =G23/3 -> 34862.94204 | H33: =H23/H$13/3 -> -333.3333333 | I33: -750 | J33: -2922
B34: 1 | C34: =C24/C13 -> 80351.53798 | F34: 1 | G34: =G24/3 -> -13391.923 | H34: 166.6666667 | I34: 150 | J34: 333.3333333
B35: 2 | C35: =C25/C13 -> 73446.32768 | F35: 2 | G35: =G25/3 -> -12241.05461 | H35: 100 | I35: 250 | J35: 333.3333333
B36: L | E36: =E26/E13/3 -> -37825.99539 | F36: L | G36: =G26/3 -> -9229.964428 | H36: 66.66666667 | I36: 350 | J36: 2255.333333
E39: 0 | G39: =G31 -> 0 | H39: =H31 -> 0 | I39: =I31 -> 0 | J39: =J31 -> 0
F40: B | G40: 0 | H40: 1 | I40: 2 | J40: L
E41: 0 | F41: 0 | G41: =G33 -> 34862.94204 | H41: =H33 -> -333.3333333 | I41: -750 | J41: -2922
F42: 1 | G42: =G34 -> -13391.923 | H42: 166.6666667 | I42: 150 | J42: 333.3333333
C43: System State | F43: 2 | G43: =G35 -> -12241.05461 | H43: 100 | I43: 250 | J43: 333.3333333
C44: @ time = 0 > | E44: =E36 -> -37825.99539 | F44: L | G44: =G36 -> -9229.964428 | H44: 66.66666667 | I44: 350 | J44: 2255.333333
E47: 0 | G47: =G39 -> 0 | H47: =H39 -> 0 | I47: =I39 -> 0 | J47: =J39 -> 0
F48: C | G48: 0 | H48: 1 | I48: 2 | J48: L
E49: 0 | F49: 0 | G49: =G41 -> 34862.94204 | H49: =H41 -> -333.3333333 | I49: -750 | J49: -2922
F50: 1 | G50: =G42 -> -13391.923 | H50: 166.6666667 | I50: 150 | J50: 333.3333333
F51: 2 | G51: =G43 -> -12241.05461 | H51: 100 | I51: 250 | J51: 333.3333333
E52: =E44 -> -37825.99539 | F52: L | G52: =G44 -> -9229.964428 | H52: 66.66666667 | I52: 350 | J52: 2255.333333
J55: =Utility!H31/J13 -> -10219.74286
C58: k | E58: A
B59: 2 | C59: 0 | D59: 2 | E59: 0 | F59: 2
B60: 1 | C60: 0 | D60: 1 | E60: 0 | F60: 1
B61: 0 | C61: 0 | D61: 0 | E61: 0 | F61: 0
E63: B
C64: International | D64: 2 | E64: 0 | F64: 2
C65: Financial State | D65: 1 | E65: 0 | F65: 1
C66: @ time = 0 > | D66: 0 | E66: 0 | F66: 0
E68: C
D69: 2 | E69: 0 | F69: 2
D70: 1 | E70: 0 | F70: 1
D71: 0 | E71: 0 | F71: 0

Sheet Module1 (hidden)

Sheet Module2 (hidden)
